Workbook

Sheet HOME
F1: API LNAPL Transmissivity Workbook
F2: Calculation of LNAPL Transmissivity from Baildown Test Data
B4: STEP 1: RESET OUTPUT SUMMARY
G6: STEP 4: LNAPL TRANSMISSIVITY SUMMARY
B11: STEP 2: ENTER DATA & VIEW FIGURES
B12: STEP 3: CHOOSE WELL CONDITIONS | I12: Mean LNAPL Transmissivity (ft2/d)
I13: 2.992245834
I16: Standard Deviation (ft2/d)
I17: 0.4827029355
I20: Coefficient of Variation
I21: 0.1613179405

Sheet Data
A1: Well Designation: | B1: YYY | C1: Beckett and Lyverse (2002)
A2: Date: | B2: date
A4: Ground Surface Elev (ft msl) | B4: 0 | C4: Enter These Data | E4: Drawdown
A5: Top of Casing Elev (ft msl) | B5: 0 | E5: Adjustment
A6: Well Casing Radius, rc (ft): | B6: =2/24 -> 0.08333333333 | C6: re1 | E6: (ft)
A7: Well Radius, rw (ft): | B7: =8/24 -> 0.3333333333 | E7: =Figures!C28 -> 0
A8: LNAPL Specific Yield, Sy: | B8: 0.175
A9: LNAPL Density Ratio, rr: | B9: 0.78
A10: Top of Screen (ft bgs): | B10: 57
A11: Bottom of Screen (ft bgs): | B11: 72
A12: LNAPL Baildown Vol. (gal.): | B12: 9
A13: Effective Radius, re3 (ft): | B13: =SQRT(B8*(B7^2-B6^2)+B6^2) -> 0.1586619397 | C13: Calculated Parameters
A14: Effective Radius, re2 (ft): | B14: =SQRT(-Figures!U27*B6^2+(Figures!U27+1)*B13^2) -> 0.04361575994
A15: Initial Casing LNAPL Vol. (gal.): | B15: =PI()*B6^2*(F21-E21)*7.48 -> 1.927253647
A16: Initial Filter LNAPL Vol. (gal.): | B16: =IF(E21<B10,PI()*(B7^2-B6^2)*B8*(F21-B10)*7.48,PI()*(B7^2-B6^2)*B8*(F21-E21)*7.48) -> 5.059040822
C18: Enter Data Here | I18: Water Table | J18: LNAPL | M18: LNAPL | U18: LNAPL | V18: Ave.
I19: Depth | J19: Drawdown | L19: Average | M19: Discharge | N19: sn | O19: bn | P19: re | S19: DTP | T19: DTW | U19: Volume | V19: re
B20: Time (min) | C20: DTP (ft btoc) | D20: DTW (ft btoc) | E20: DTP (ft bgs) | F20: DTW (ft bgs) | I20: (ft) | J20: sn (ft) | L20: Time (min) | M20: Qn (ft3/d) | N20: (ft) | O20: (ft) | P20: (ft) | S20: (ft bgs) | T20: (ft bgs) | U20: (gallons) | V20: (ft)
A21: Initial Fluid Levels: | B21: 0 | C21: 59.57 | D21: 71.38 | E21: =C21+B4-B5 -> 59.57 | F21: =D21+B4-B5 -> 71.38 | I21: =E21+(1-B$9)*(F21-E21) -> 62.1682 | O21: =F21-E21 -> 11.81
A23: Enter Test Data: | B23: 1 | C23: 61.7 | D23: 61.75 | E23: =IF(B23>0,C23+B$4-B$5,NA()) -> 61.7 | F23: =IF(B23>0,D23+B$4-B$5,NA()) -> 61.75 | I23: =E23+(1-B$9)*(F23-E23) -> 61.711 | J23: =E23-E$21-E$7 -> 2.13 | O23: =F23-E23 -> 0.05 | U23: 0 | V23: =MAX(V24:V81)/(MAX(L24:L81)-L24) -> 0.1586619397
B24: 2 | C24: 61.6 | D24: 61.73 | E24: =IF(B24>0,C24+B$4-B$5,NA()) -> 61.6 | F24: =IF(B24>0,D24+B$4-B$5,NA()) -> 61.73 | I24: =E24+(1-B$9)*(F24-E24) -> 61.6286 | J24: 2.03 | L24: =IF(B24>0,0.5*(B23+B24),0) -> 1.5 | M24: =IF(B24>0,1440*PI()*P24^2*(E23-E24+F24-F23)/(B24-B23),NA()) -> 9.110618695 | N24: =0.5*(J23+J24) -> 2.08 | O24: =F24-E24 -> 0.13 | P24: =IF(B24>0,re(B$10,E24,F24,B$6,B$14,B$13), ) -> 0.1586619397 | S24: =(E23+E24)/2 -> 61.65 | T24: =(F23+F24)/2 -> 61.74 | U24: =U23+M24*(B24-B23)*7.48/1440 -> 0.04732460267 | V24: 0
B25: 3 | C25: 61.53 | D25: 61.71 | E25: 61.53 | F25: 61.71 | I25: 61.5696 | J25: 1.96 | L25: =IF(B25>0,0.5*(B24+B25),0) -> 2.5 | M25: =IF(B25>0,1440*PI()*P25^2*(E24-E25+F25-F24)/(B25-B24),NA()) -> 5.694136685 | N25: =0.5*(J24+J25) -> 1.995 | O25: =F25-E25 -> 0.18 | P25: =IF(B25>0,re(B$10,E25,F25,B$6,B$14,B$13), ) -> 0.1586619397 | S25: =(E24+E25)/2 -> 61.565 | T25: 61.72 | U25: =U24+M25*(B25-B24)*7.48/1440 -> 0.07690247934 | V25: =IF(P25>0,V24+0.5*(P24+P25)*(L25-L24),0) -> 0.1586619397
B26: 4 | C26: 61.45 | D26: 61.69 | E26: 61.45 | F26: 61.69 | I26: 61.5028 | J26: 1.88 | L26: 3.5 | M26: 6.832964022 | N26: 1.92 | O26: 0.24 | P26: =IF(B26>0,re(B$10,E26,F26,B$6,B$14,B$13), ) -> 0.1586619397 | S26: 61.49 | T26: 61.7 | U26: 0.1123959313 | V26: =IF(P26>0,V25+0.5*(P25+P26)*(L26-L25),0) -> 0.3173238794
B27: 5 | C27: 61.4 | D27: 61.68 | E27: 61.4 | F27: 61.68 | I27: 61.4616 | J27: 1.83 | L27: 4.5 | M27: 4.555309348 | N27: 1.855 | O27: 0.28 | P27: =IF(B27>0,re(B$10,E27,F27,B$6,B$14,B$13), ) -> 0.1586619397 | S27: 61.425 | T27: 61.685 | U27: 0.1360582327 | V27: 0.4759858191
B28: 6 | C28: 61.35 | D28: 61.67 | E28: 61.35 | F28: 61.67 | I28: 61.4204 | J28: 1.78 | L28: 5.5 | M28: 4.555309348 | N28: 1.805 | O28: 0.32 | P28: =IF(B28>0,re(B$10,E28,F28,B$6,B$14,B$13), ) -> 0.1586619397 | S28: 61.375 | T28: 61.675 | U28: 0.159720534 | V28: 0.6346477588
B29: 7 | C29: 61.3 | D29: 61.66 | E29: 61.3 | F29: 61.66 | I29: 61.3792 | J29: 1.73 | L29: 6.5 | M29: 4.555309348 | N29: 1.755 | O29: 0.36 | P29: =IF(B29>0,re(B$10,E29,F29,B$6,B$14,B$13), ) -> 0.1586619397 | S29: 61.325 | T29: 61.665 | U29: 0.1833828353 | V29: 0.7933096985
B30: 8 | C30: 61.25 | D30: 61.65 | E30: 61.25 | F30: 61.65 | I30: 61.338 | J30: 1.68 | L30: 7.5 | M30: 4.555309348 | N30: 1.705 | O30: 0.4 | P30: =IF(B30>0,re(B$10,E30,F30,B$6,B$14,B$13), ) -> 0.1586619397 | S30: 61.275 | T30: 61.655 | U30: 0.2070451367 | V30: 0.9519716382
B31: 9 | C31: 61.2 | D31: 61.64 | E31: 61.2 | F31: 61.64 | I31: 61.2968 | J31: 1.63 | L31: 8.5 | M31: 4.555309348 | N31: 1.655 | O31: 0.44 | P31: =IF(B31>0,re(B$10,E31,F31,B$6,B$14,B$13), ) -> 0.1586619397 | S31: 61.225 | T31: 61.645 | U31: 0.230707438 | V31: 1.110633578
B32: 10 | C32: 61.15 | D32: 61.67 | E32: 61.15 | F32: 61.67 | I32: 61.2644 | J32: 1.58 | L32: 9.5 | M32: 9.110618695 | N32: 1.605 | O32: 0.52 | P32: =IF(B32>0,re(B$10,E32,F32,B$6,B$14,B$13), ) -> 0.1586619397 | S32: 61.175 | T32: 61.655 | U32: 0.2780320407 | V32: 1.269295518
B33: 20 | C33: 61.12 | D33: 61.71 | E33: 61.12 | F33: 61.71 | I33: 61.2498 | J33: 1.55 | L33: 15 | M33: 0.7971791358 | N33: 1.565 | O33: 0.59 | P33: =IF(B33>0,re(B$10,E33,F33,B$6,B$14,B$13), ) -> 0.1586619397 | S33: 61.135 | T33: 61.69 | U33: 0.319441068 | V33: 2.141936186
B34: 26 | C34: 61.1 | D34: 61.8 | E34: 61.1 | F34: 61.8 | I34: 61.254 | J34: 1.53 | L34: 23 | M34: 2.087850118 | N34: 1.54 | O34: 0.7 | P34: =IF(B34>0,re(B$10,E34,F34,B$6,B$14,B$13), ) -> 0.1586619397 | S34: 61.11 | T34: 61.755 | U34: 0.3845123967 | V34: 3.411231704
B35: 30 | C35: 61.09 | D35: 61.85 | E35: 61.09 | F35: 61.85 | I35: 61.2572 | J35: 1.52 | L35: 28 | M35: 1.708241005 | N35: 1.525 | O35: 0.76 | P35: =IF(B35>0,re(B$10,E35,F35,B$6,B$14,B$13), ) -> 0.1586619397 | S35: 61.095 | T35: 61.825 | U35: 0.4200058487 | V35: 4.204541402
B36: 40 | C36: 61.05 | D36: 61.92 | E36: 61.05 | F36: 61.92 | I36: 61.2414 | J36: 1.48 | L36: 35 | M36: 1.252710071 | N36: 1.5 | O36: 0.87 | P36: =IF(B36>0,re(B$10,E36,F36,B$6,B$14,B$13), ) -> 0.1586619397 | S36: 61.07 | T36: 61.885 | U36: 0.4850771773 | V36: 5.31517498
B37: 50 | C37: 61.02 | D37: 62 | E37: 61.02 | F37: 62 | I37: 61.2356 | J37: 1.45 | L37: 45 | M37: 1.252710071 | N37: 1.465 | O37: 0.98 | P37: =IF(B37>0,re(B$10,E37,F37,B$6,B$14,B$13), ) -> 0.1586619397 | S37: 61.035 | T37: 61.96 | U37: 0.550148506 | V37: 6.901794377
B38: 60 | C38: 60.99 | D38: 62.09 | E38: 60.99 | F38: 62.09 | I38: 61.232 | J38: 1.42 | L38: 55 | M38: 1.366592804 | N38: 1.435 | O38: 1.1 | P38: =IF(B38>0,re(B$10,E38,F38,B$6,B$14,B$13), ) -> 0.1586619397 | S38: 61.005 | T38: 62.045 | U38: 0.62113541 | V38: 8.488413774
B39: 70 | C39: 60.97 | D39: 62.11 | E39: 60.97 | F39: 62.11 | I39: 61.2208 | J39: 1.4 | L39: 65 | M39: 0.4555309348 | N39: 1.41 | O39: 1.14 | P39: =IF(B39>0,re(B$10,E39,F39,B$6,B$14,B$13), ) -> 0.1586619397 | S39: 60.98 | T39: 62.1 | U39: 0.6447977113 | V39: 10.07503317
B40: 80 | C40: 60.95 | D40: 62.14 | E40: 60.95 | F40: 62.14 | I40: 61.2118 | J40: 1.38 | L40: 75 | M40: 0.5694136685 | N40: 1.39 | O40: 1.19 | P40: =IF(B40>0,re(B$10,E40,F40,B$6,B$14,B$13), ) -> 0.1586619397 | S40: 60.96 | T40: 62.125 | U40: 0.674375588 | V40: 11.66165257
B41: 90 | C41: 60.94 | D41: 62.17 | E41: 60.94 | F41: 62.17 | I41: 61.2106 | J41: 1.37 | L41: 85 | M41: 0.4555309348 | N41: 1.375 | O41: 1.23 | P41: =IF(B41>0,re(B$10,E41,F41,B$6,B$14,B$13), ) -> 0.1586619397 | S41: 60.945 | T41: 62.155 | U41: 0.6980378894 | V41: 13.24827197
B42: 100 | C42: 60.93 | D42: 62.2 | E42: 60.93 | F42: 62.2 | I42: 61.2094 | J42: 1.36 | L42: 95 | M42: 0.4555309348 | N42: 1.365 | O42: 1.27 | P42: =IF(B42>0,re(B$10,E42,F42,B$6,B$14,B$13), ) -> 0.1586619397 | S42: 60.935 | T42: 62.185 | U42: 0.7217001907 | V42: 14.83489136
B43: 1000 | C43: 60.94 | D43: 62.7 | E43: 60.94 | F43: 62.7 | I43: =E43+(1-B$9)*(F43-E43) -> 61.3272 | J43: 1.37 | L43: 550 | M43: 0.06200282168 | N43: =0.5*(J42+J43) -> 1.365 | O43: =F43-E43 -> 1.76 | P43: =IF(B43>0,re(B$10,E43,F43,B$6,B$14,B$13), ) -> 0.1586619397 | S43: 60.935 | T43: 62.45 | U43: 1.011563382 | V43: 87.02607393
B44: 2450 | C44: 61.05 | D44: 62.92 | E44: 61.05 | F44: 62.92 | I44: 61.4614 | J44: 1.48 | L44: 1725 | M44: 0.008639379797 | N44: 1.425 | O44: 1.87 | P44: =IF(B44>0,re(B$10,E44,F44,B$6,B$14,B$13), ) -> 0.1586619397 | S44: 60.995 | T44: 62.81 | U44: 1.076634711 | V44: 273.4538531
B45: 3900 | C45: 61.07 | D45: 62.98 | E45: 61.07 | F45: 62.98 | I45: =E45+(1-B$9)*(F45-E45) -> 61.4902 | J45: 1.5 | L45: 3175 | M45: 0.003141592654 | N45: =0.5*(J44+J45) -> 1.49 | O45: =F45-E45 -> 1.91 | P45: =IF(B45>0,re(B$10,E45,F45,B$6,B$14,B$13), ) -> 0.1586619397 | S45: 61.06 | T45: 62.95 | U45: 1.100297012 | V45: 503.5136657
B46: 5350 | C46: 60.88 | D46: 62.95 | E46: 60.88 | F46: 62.95 | I46: =E46+(1-B$9)*(F46-E46) -> 61.3354 | J46: =E46-E$21-E$7 -> 1.31 | L46: 4625 | M46: 0.01256637061 | N46: =0.5*(J45+J46) -> 1.405 | O46: =F46-E46 -> 2.07 | P46: =IF(B46>0,re(B$10,E46,F46,B$6,B$14,B$13), ) -> 0.1586619397 | S46: =(E45+E46)/2 -> 60.975 | T46: =(F45+F46)/2 -> 62.965 | U46: =U45+M46*(B46-B45)*7.48/1440 -> 1.194946217 | V46: 733.5734782
B47: 29240 | C47: 60.95 | D47: 63.1 | E47: 60.95 | F47: 63.1 | I47: 61.423 | J47: 1.38 | L47: 17295 | M47: 0.0003813569986 | N47: 1.345 | O47: 2.15 | P47: =IF(B47>0,re(B$10,E47,F47,B$6,B$14,B$13), ) -> 0.1586619397 | S47: 60.915 | T47: 63.025 | U47: 1.24227082 | V47: 2743.820254
B48: 54410 | C48: 60.98 | D48: 63.15 | E48: 60.98 | F48: 63.15 | I48: 61.4574 | J48: 1.41 | L48: 41825 | M48: 9.049084918e-05 | N48: 1.395 | O48: 2.17 | P48: =IF(B48>0,re(B$10,E48,F48,B$6,B$14,B$13), ) -> 0.1586619397 | S48: 60.965 | T48: 63.125 | U48: 1.254101971 | V48: 6635.797635
L49: 0 | P49: =IF(B49>0,re(B$10,E49,F49,B$6,B$14,B$13), ) -> 0 | V49: 0
L50: 0 | P50: =IF(B50>0,re(B$10,E50,F50,B$6,B$14,B$13), ) -> 0 | V50: 0
L51: 0 | P51: =IF(B51>0,re(B$10,E51,F51,B$6,B$14,B$13), ) -> 0 | V51: 0
L52: 0 | P52: =IF(B52>0,re(B$10,E52,F52,B$6,B$14,B$13), ) -> 0 | V52: 0
L53: 0 | P53: =IF(B53>0,re(B$10,E53,F53,B$6,B$14,B$13), ) -> 0 | V53: 0
L54: 0 | P54: =IF(B54>0,re(B$10,E54,F54,B$6,B$14,B$13), ) -> 0 | V54: 0
L55: 0 | P55: =IF(B55>0,re(B$10,E55,F55,B$6,B$14,B$13), ) -> 0 | V55: 0
L56: 0 | P56: =IF(B56>0,re(B$10,E56,F56,B$6,B$14,B$13), ) -> 0 | V56: 0
L57: 0 | P57: =IF(B57>0,re(B$10,E57,F57,B$6,B$14,B$13), ) -> 0 | V57: 0
L58: 0 | P58: =IF(B58>0,re(B$10,E58,F58,B$6,B$14,B$13), ) -> 0 | V58: 0
L59: 0 | P59: =IF(B59>0,re(B$10,E59,F59,B$6,B$14,B$13), ) -> 0 | V59: 0
L60: 0 | P60: =IF(B60>0,re(B$10,E60,F60,B$6,B$14,B$13), ) -> 0 | V60: 0
L61: 0 | P61: =IF(B61>0,re(B$10,E61,F61,B$6,B$14,B$13), ) -> 0 | V61: 0
L62: 0 | P62: =IF(B62>0,re(B$10,E62,F62,B$6,B$14,B$13), ) -> 0 | V62: 0
L63: 0 | P63: =IF(B63>0,re(B$10,E63,F63,B$6,B$14,B$13), ) -> 0 | V63: 0
L64: 0 | P64: =IF(B64>0,re(B$10,E64,F64,B$6,B$14,B$13), ) -> 0 | V64: 0
L65: 0 | P65: =IF(B65>0,re(B$10,E65,F65,B$6,B$14,B$13), ) -> 0 | V65: 0
L66: 0 | P66: =IF(B66>0,re(B$10,E66,F66,B$6,B$14,B$13), ) -> 0 | V66: 0
L67: 0 | P67: =IF(B67>0,re(B$10,E67,F67,B$6,B$14,B$13), ) -> 0 | V67: 0
L68: 0 | P68: =IF(B68>0,re(B$10,E68,F68,B$6,B$14,B$13), ) -> 0 | V68: 0
L69: 0 | P69: =IF(B69>0,re(B$10,E69,F69,B$6,B$14,B$13), ) -> 0 | V69: 0
L70: 0 | P70: =IF(B70>0,re(B$10,E70,F70,B$6,B$14,B$13), ) -> 0 | V70: 0
L71: 0 | P71: =IF(B71>0,re(B$10,E71,F71,B$6,B$14,B$13), ) -> 0 | V71: 0
L72: 0 | P72: =IF(B72>0,re(B$10,E72,F72,B$6,B$14,B$13), ) -> 0 | V72: 0
L73: 0 | P73: =IF(B73>0,re(B$10,E73,F73,B$6,B$14,B$13), ) -> 0 | V73: 0
L74: 0 | P74: =IF(B74>0,re(B$10,E74,F74,B$6,B$14,B$13), ) -> 0 | V74: 0
L75: 0 | P75: =IF(B75>0,re(B$10,E75,F75,B$6,B$14,B$13), ) -> 0 | V75: 0
L76: 0 | P76: =IF(B76>0,re(B$10,E76,F76,B$6,B$14,B$13), ) -> 0 | V76: 0
L77: 0 | P77: =IF(B77>0,re(B$10,E77,F77,B$6,B$14,B$13), ) -> 0 | V77: 0
L78: 0 | P78: =IF(B78>0,re(B$10,E78,F78,B$6,B$14,B$13), ) -> 0 | V78: 0
L79: 0 | P79: =IF(B79>0,re(B$10,E79,F79,B$6,B$14,B$13), ) -> 0 | V79: 0
L80: 0 | P80: =IF(B80>0,re(B$10,E80,F80,B$6,B$14,B$13), ) -> 0 | V80: 0
L81: 0 | P81: =IF(B81>0,re(B$10,E81,F81,B$6,B$14,B$13), ) -> 0 | V81: 0
P83: =AVERAGE(P24:P81) -> 0.06838876711

Sheet Figures
D2: Figure 1 | L2: Figure 2
T3: =0.8*MIN(Data!B23:B81) -> 0.8 | U3: =Data!E21 -> 59.57
T4: =MAX(Data!B23:B81) -> 54410 | U4: =U3 -> 59.57
T5: =T3 -> 0.8 | U5: =Data!F21 -> 71.38
T6: =T4 -> 54410 | U6: =U5 -> 71.38
T8: =T4/4 -> 13602.5 | U8: =IF(V8<V9,V8,NA()) -> 58.57 | V8: =IF(Data!B10>Data!E21,Data!B10,Data!E21-1) -> 58.57
T9: =T8 -> 13602.5 | U9: =IF(V8<V9,V9,NA()) -> 72.38 | V9: =IF(Data!B11<Data!F21,Data!B11,Data!F21+1) -> 72.38
D21: Figure 3 | L21: Figure 4
B22: Qn (ft3/d) | C22: sn (ft) | T22: bn | U22: sn
B23: 0 | C23: 0 | T23: 0.52 | U23: 1.45
B24: 4 | C24: 0.38 | T24: 0.05 | U24: 2.05
B27: Drawdown Adjust. | T27: J-ratio | U27: =(U23-U24)/(T23-T24) -> -1.276595745
B28: Dsn (ft) | C28: 0
D41: Figure 5 | L41: Figure 6
D60: Figure 7 | L60: Figure 8
D79: Figure 9 | L79: Figure 10
T86: t (min) | U86: sn (ft)
T87: 12 | U87: 0.115
T88: 12 | U88: 0

Sheet B&R
A1: Generalized Bouwer and Rice (1976)
A2: Well Designation: | C2: =IF(Data!B1 > 0,Data!B1,"") -> YYY
A3: Date: | C3: =IF(Data!B2 > 0,Data!B2,"") -> date | U3: y = A + B x
X4: B&R Type Curve
M5: Xi | N5: Yi | O5: X2 | P5: XY | Q5: (y-A-Bx)2 | R5: e | S5: count | T5: s/s0 | U5: SX | V5: =SUM(M6:M64) -> 96521 | X5: t (min) | Y5: s/s0 | AA5: Xi | AB5: Yi
M6: =IF(Data!B23>=D$9,Data!B23-D$9,0) -> 0 | N6: =IF(S6>0,LN(Data!J23),0) -> 0 | O6: =M6^2 -> 0 | P6: =M6*N6 -> 0 | Q6: =IF(M6>0,(N6-V$11-V$12*M6)^2,0) -> 0 | R6: =IF(M6>0,(N6-V$11-V$12*M6)/SQRT(V$14),0) -> 0 | S6: =IF(Data!B23>'B&R'!D$9,1,0) -> 0 | T6: =IF(S6=0,NA(),EXP(N6)/EXP(V$19)) ->  | U6: SY | V6: =SUM(N6:N64) -> 5.287110038 | X6: 0 | Y6: =EXP(-2*E$12*(X6/1440)*(-J$15)/(Data!V$23^2*LN('B&R'!J$12))) -> 1 | AA6: =IF(S6>0,M6,NA()) ->  | AB6: =IF(T6>0,N6,NA()) -> 
B7: Enter early time cut-off for least-squares model fit | J7: Le/re | M7: =IF(Data!B24>=D$9,Data!B24-D$9,0) -> 0 | N7: =IF(S7>0,LN(Data!J24),0) -> 0 | O7: =M7^2 -> 0 | P7: =M7*N7 -> 0 | Q7: =IF(M7>0,(N7-V$11-V$12*M7)^2,0) -> 0 | R7: =IF(M7>0,(N7-V$11-V$12*M7)/SQRT(V$14),0) -> 0 | S7: =IF(Data!B24>'B&R'!D$9,1,0) -> 0 | T7: =IF(S7=0,NA(),EXP(N7)/EXP(V$19)) ->  | U7: SX2 | V7: =SUM(O6:O64) -> 3861463951 | X7: =X6+1.05*(MAX(M$6:M$64)/30) -> 1903.475 | Y7: =EXP(-2*E$12*(X7/1440)*(-J$15)/(Data!V$23^2*LN('B&R'!J$12))) -> 0.9990885622 | AA7: =IF(S7>0,M7,NA()) ->  | AB7: =IF(T7>0,N7,NA()) -> 
J8: =IF(Data!E21<Data!B10,(Data!F21-Data!B10)/Data!B13,(Data!F21-Data!E21)/Data!B13) -> 74.43499066 | M8: =IF(Data!B25>=D$9,Data!B25-D$9,0) -> 0 | N8: =IF(S8>0,LN(Data!J25),0) -> 0 | O8: 0 | P8: 0 | Q8: 0 | R8: 0 | S8: =IF(Data!B25>'B&R'!D$9,1,0) -> 0 | U8: SXY | V8: =SUM(P6:P64) -> 32468.85126 | X8: =X7+1.05*(MAX(M$6:M$64)/30) -> 3806.95 | Y8: =EXP(-2*E$12*(X8/1440)*(-J$15)/(Data!V$23^2*LN('B&R'!J$12))) -> 0.9981779551
C9: Timecut | D9: 25 | E9: <- Enter or change value here | J9: C | M9: =IF(Data!B26>=D$9,Data!B26-D$9,0) -> 0 | N9: =IF(S9>0,LN(Data!J26),0) -> 0 | O9: 0 | P9: 0 | Q9: 0 | R9: 0 | S9: =IF(Data!B26>'B&R'!D$9,1,0) -> 0 | U9: N | V9: =SUM(S6:S64) -> 15 | X9: 5710.425 | Y9: =EXP(-2*E$12*(X9/1440)*(-J$15)/(Data!V$23^2*LN('B&R'!J$12))) -> 0.997268178
J10: =IF(J8<2000,0.792+0.03993*J8-0.00005743*J8^2+0.00000003858*J8^3-0.000000000009659*J8^4,13.5) -> 3.461608715 | M10: =IF(Data!B27>=D$9,Data!B27-D$9,0) -> 0 | N10: =IF(S10>0,LN(Data!J27),0) -> 0 | O10: 0 | P10: 0 | Q10: 0 | R10: 0 | S10: =IF(Data!B27>'B&R'!D$9,1,0) -> 0 | U10: D | V10: =V9*V7-V5^2 -> 48605655824 | X10: 7613.9 | Y10: =EXP(-2*E$12*(X10/1440)*(-J$15)/(Data!V$23^2*LN('B&R'!J$12))) -> 0.9963592301
J11: R/re | M11: =IF(Data!B28>=D$9,Data!B28-D$9,0) -> 0 | N11: =IF(S11>0,LN(Data!J28),0) -> 0 | O11: 0 | P11: 0 | Q11: 0 | R11: 0 | S11: =IF(Data!B28>'B&R'!D$9,1,0) -> 0 | U11: A | V11: =(V7*V6-V5*V8)/V10 -> 0.3555565403 | X11: 9517.375 | Y11: =EXP(-2*E$12*(X11/1440)*(-J$15)/(Data!V$23^2*LN('B&R'!J$12))) -> 0.9954511106
B12: Model Results: | D12: Tn (ft2/d) = | E12: =1440*V22*(-V12) -> 2.254156687e-05 | F12: +/- | G12: =1440*V22*SQRT(V15) -> 3.910308331e-05 | H12: ft2/d | J12: =EXP(((1.1/LN(J8))+J10/J8)^-1) -> 27.50099578 | M12: =IF(Data!B29>=D$9,Data!B29-D$9,0) -> 0 | N12: =IF(S12>0,LN(Data!J29),0) -> 0 | O12: 0 | P12: 0 | Q12: 0 | R12: 0 | S12: =IF(Data!B29>'B&R'!D$9,1,0) -> 0 | U12: B | V12: =(V9*V8-V5*V6)/V10 -> -4.790467013e-07 | X12: 11420.85 | Y12: =EXP(-2*E$12*(X12/1440)*(-J$15)/(Data!V$23^2*LN('B&R'!J$12))) -> 0.9945438188
M13: =IF(Data!B30>=D$9,Data!B30-D$9,0) -> 0 | N13: =IF(S13>0,LN(Data!J30),0) -> 0 | O13: 0 | P13: 0 | Q13: 0 | R13: 0 | S13: =IF(Data!B30>'B&R'!D$9,1,0) -> 0 | X13: 13324.325 | Y13: =EXP(-2*E$12*(X13/1440)*(-J$15)/(Data!V$23^2*LN('B&R'!J$12))) -> 0.993637354
J14: J-Ratio | M14: =IF(Data!B31>=D$9,Data!B31-D$9,0) -> 0 | N14: =IF(S14>0,LN(Data!J31),0) -> 0 | O14: 0 | P14: 0 | Q14: 0 | R14: 0 | S14: =IF(Data!B31>'B&R'!D$9,1,0) -> 0 | U14: sy2 | V14: =SUM(Q6:Q64)/(V9-2) -> 0.002237716485 | X14: 15227.8 | Y14: =EXP(-2*E$12*(X14/1440)*(-J$15)/(Data!V$23^2*LN('B&R'!J$12))) -> 0.9927317153
J15: =Figures!U27 -> -1.276595745 | M15: =IF(Data!B32>=D$9,Data!B32-D$9,0) -> 0 | N15: =IF(S15>0,LN(Data!J32),0) -> 0 | O15: 0 | P15: 0 | Q15: 0 | R15: 0 | S15: =IF(Data!B32>'B&R'!D$9,1,0) -> 0 | U15: sB2 | V15: =V9*V14/V10 -> 6.905728708e-13 | X15: 17131.275 | Y15: =EXP(-2*E$12*(X15/1440)*(-J$15)/(Data!V$23^2*LN('B&R'!J$12))) -> 0.9918269021
M16: =IF(Data!B33>=D$9,Data!B33-D$9,0) -> 0 | N16: =IF(S16>0,LN(Data!J33),0) -> 0 | O16: 0 | P16: 0 | Q16: 0 | R16: 0 | S16: =IF(Data!B33>'B&R'!D$9,1,0) -> 0 | X16: 19034.75 | Y16: =EXP(-2*E$12*(X16/1440)*(-J$15)/(Data!V$23^2*LN('B&R'!J$12))) -> 0.9909229136
M17: =IF(Data!B34>=D$9,Data!B34-D$9,0) -> 1 | N17: =IF(S17>0,LN(Data!J34),0) -> 0.4252677354 | O17: 1 | P17: 0.4252677354 | Q17: 0.004859717512 | R17: 1.473679295 | S17: =IF(Data!B34>'B&R'!D$9,1,0) -> 1 | T17: 1.07219848 | X17: 20938.225 | Y17: =EXP(-2*E$12*(X17/1440)*(-J$15)/(Data!V$23^2*LN('B&R'!J$12))) -> 0.990019749 | AA17: 1 | AB17: 0.4252677354
M18: =IF(Data!B35>=D$9,Data!B35-D$9,0) -> 5 | N18: =IF(S18>0,LN(Data!J35),0) -> 0.4187103349 | O18: 25 | P18: 2.093551674 | Q18: 0.003988704308 | R18: 1.335098754 | S18: =IF(Data!B35>'B&R'!D$9,1,0) -> 1 | T18: 1.065190647 | U18: Plot Model Line | X18: 22841.7 | Y18: =EXP(-2*E$12*(X18/1440)*(-J$15)/(Data!V$23^2*LN('B&R'!J$12))) -> 0.9891174075 | AA18: 5 | AB18: 0.4187103349
M19: =IF(Data!B36>=D$9,Data!B36-D$9,0) -> 15 | N19: =IF(S19>0,LN(Data!J36),0) -> 0.3920420878 | O19: 225 | P19: 5.880631317 | Q19: 0.001331719574 | R19: 0.7714430325 | S19: =IF(Data!B36>'B&R'!D$9,1,0) -> 1 | T19: 1.037159314 | U19: 0 | V19: =V11 -> 0.3555565403 | X19: 24745.175 | Y19: =EXP(-2*E$12*(X19/1440)*(-J$15)/(Data!V$23^2*LN('B&R'!J$12))) -> 0.9882158885 | AA19: 15 | AB19: 0.3920420878
J20: Coef. Of | M20: =IF(Data!B37>=D$9,Data!B37-D$9,0) -> 25 | N20: =IF(S20>0,LN(Data!J37),0) -> 0.3715635564 | O20: 625 | P20: 9.289088911 | Q20: 0.0002566081141 | R20: 0.3386356383 | S20: =IF(Data!B37>'B&R'!D$9,1,0) -> 1 | T20: 1.016135815 | U20: =MAX(M6:M64) -> 54385 | V20: =V11+V12*U20 -> 0.3295035855 | X20: 26648.65 | Y20: =EXP(-2*E$12*(X20/1440)*(-J$15)/(Data!V$23^2*LN('B&R'!J$12))) -> 0.9873151912 | AA20: 25 | AB20: 0.3715635564
J21: Variation | M21: =IF(Data!B38>=D$9,Data!B38-D$9,0) -> 35 | N21: =IF(S21>0,LN(Data!J38),0) -> 0.3506568716 | O21: 1225 | P21: 12.27299051 | Q21: 2.384273253e-05 | R21: -0.1032227637 | S21: =IF(Data!B38>'B&R'!D$9,1,0) -> 1 | T21: 0.9951123151 | X21: 28552.125 | Y21: =EXP(-2*E$12*(X21/1440)*(-J$15)/(Data!V$23^2*LN('B&R'!J$12))) -> 0.9864153148 | AA21: 35 | AB21: 0.3506568716
J22: =G12/E12 -> 1.734710082 | M22: =IF(Data!B39>=D$9,Data!B39-D$9,0) -> 45 | N22: =IF(S22>0,LN(Data!J39),0) -> 0.3364722366 | O22: 2025 | P22: 15.14125065 | Q22: 0.0003633883074 | R22: -0.4029794909 | S22: =IF(Data!B39>'B&R'!D$9,1,0) -> 1 | T22: 0.9810966487 | U22: factor | V22: =Data!V23^2*LN('B&R'!J12)/(2*(-Figures!U27)) -> 0.03267711862 | X22: 30455.6 | Y22: =EXP(-2*E$12*(X22/1440)*(-J$15)/(Data!V$23^2*LN('B&R'!J$12))) -> 0.9855162586 | AA22: 45 | AB22: 0.3364722366
M23: =IF(Data!B40>=D$9,Data!B40-D$9,0) -> 55 | N23: =IF(S23>0,LN(Data!J40),0) -> 0.3220834992 | O23: 3025 | P23: 17.71459245 | Q23: 0.001118681311 | R23: -0.7070508694 | S23: =IF(Data!B40>'B&R'!D$9,1,0) -> 1 | T23: 0.9670809823 | X23: 32359.075 | Y23: =EXP(-2*E$12*(X23/1440)*(-J$15)/(Data!V$23^2*LN('B&R'!J$12))) -> 0.9846180218 | AA23: 55 | AB23: 0.3220834992
M24: =IF(Data!B41>=D$9,Data!B41-D$9,0) -> 65 | N24: =IF(S24>0,LN(Data!J41),0) -> 0.3148107398 | O24: 4225 | P24: 20.46269809 | Q24: 0.001657683737 | R24: -0.860693073 | S24: =IF(Data!B41>'B&R'!D$9,1,0) -> 1 | T24: 0.9600731491 | X24: 34262.55 | Y24: =EXP(-2*E$12*(X24/1440)*(-J$15)/(Data!V$23^2*LN('B&R'!J$12))) -> 0.9837206037 | AA24: 65 | AB24: 0.3148107398
M25: =IF(Data!B42>=D$9,Data!B42-D$9,0) -> 75 | N25: =IF(S25>0,LN(Data!J42),0) -> 0.3074846997 | O25: 5625 | P25: 23.06135248 | Q25: 0.002307448847 | R25: -1.015461612 | S25: =IF(Data!B42>'B&R'!D$9,1,0) -> 1 | T25: 0.9530653159 | U25: s0 (ft) | V25: =EXP(V19) -> 1.426974602 | X25: 36166.025 | Y25: =EXP(-2*E$12*(X25/1440)*(-J$15)/(Data!V$23^2*LN('B&R'!J$12))) -> 0.9828240036 | AA25: 75 | AB25: 0.3074846997
M26: =IF(Data!B43>=D$9,Data!B43-D$9,0) -> 975 | N26: =IF(S26>0,LN(Data!J43),0) -> 0.3148107398 | O26: 950625 | P26: 306.9404713 | Q26: 0.001622376085 | R26: -0.8514776194 | S26: =IF(Data!B43>'B&R'!D$9,1,0) -> 1 | T26: 0.9600731491 | X26: 38069.5 | Y26: =EXP(-2*E$12*(X26/1440)*(-J$15)/(Data!V$23^2*LN('B&R'!J$12))) -> 0.9819282206 | AA26: 975 | AB26: 0.3148107398
M27: =IF(Data!B44>=D$9,Data!B44-D$9,0) -> 2425 | N27: =IF(S27>0,LN(Data!J44),0) -> 0.3920420878 | O27: 5880625 | P27: 950.7020629 | Q27: 0.001417314357 | R27: 0.7958487942 | S27: =IF(Data!B44>'B&R'!D$9,1,0) -> 1 | T27: 1.037159314 | X27: 39972.975 | Y27: =EXP(-2*E$12*(X27/1440)*(-J$15)/(Data!V$23^2*LN('B&R'!J$12))) -> 0.9810332541 | AA27: 2425 | AB27: 0.3920420878
M28: =IF(Data!B45>=D$9,Data!B45-D$9,0) -> 3875 | N28: =IF(S28>0,LN(Data!J45),0) -> 0.4054651081 | O28: 15015625 | P28: 1571.177294 | Q28: 0.002679602156 | R28: 1.094290499 | S28: =IF(Data!B45>'B&R'!D$9,1,0) -> 1 | T28: 1.051174981 | X28: 41876.45 | Y28: =EXP(-2*E$12*(X28/1440)*(-J$15)/(Data!V$23^2*LN('B&R'!J$12))) -> 0.9801391033 | AA28: 3875 | AB28: 0.4054651081
M29: =IF(Data!B46>=D$9,Data!B46-D$9,0) -> 5325 | N29: =IF(S29>0,LN(Data!J46),0) -> 0.2700271372 | O29: 28355625 | P29: 1437.894506 | Q29: 0.006885428045 | R29: -1.754134707 | S29: =IF(Data!B46>'B&R'!D$9,1,0) -> 1 | T29: 0.9180261498 | X29: 43779.925 | Y29: =EXP(-2*E$12*(X29/1440)*(-J$15)/(Data!V$23^2*LN('B&R'!J$12))) -> 0.9792457675 | AA29: 5325 | AB29: 0.2700271372
M30: =IF(Data!B47>=D$9,Data!B47-D$9,0) -> 29215 | N30: =IF(S30>0,LN(Data!J47),0) -> 0.3220834992 | O30: 853516225 | P30: 9409.669428 | Q30: 0.0003793804763 | R30: -0.4117512801 | S30: =IF(Data!B47>'B&R'!D$9,1,0) -> 1 | T30: 0.9670809823 | X30: 45683.4 | Y30: =EXP(-2*E$12*(X30/1440)*(-J$15)/(Data!V$23^2*LN('B&R'!J$12))) -> 0.9783532459 | AA30: 29215 | AB30: 0.3220834992
M31: =IF(Data!B48>=D$9,Data!B48-D$9,0) -> 54385 | N31: =IF(S31>0,LN(Data!J48),0) -> 0.3435897044 | O31: 2957728225 | P31: 18686.12607 | Q31: 0.0001984187466 | R31: 0.2977754024 | S31: =IF(Data!B48>'B&R'!D$9,1,0) -> 1 | T31: 0.9881044819 | X31: 47586.875 | Y31: =EXP(-2*E$12*(X31/1440)*(-J$15)/(Data!V$23^2*LN('B&R'!J$12))) -> 0.9774615377 | AA31: 54385 | AB31: 0.3435897044
M32: =IF(Data!B49>=D$9,Data!B49-D$9,0) -> 0 | N32: =IF(S32>0,LN(Data!J49),0) -> 0 | O32: 0 | P32: 0 | Q32: 0 | R32: 0 | S32: =IF(Data!B49>'B&R'!D$9,1,0) -> 0 | X32: 49490.35 | Y32: =EXP(-2*E$12*(X32/1440)*(-J$15)/(Data!V$23^2*LN('B&R'!J$12))) -> 0.9765706423
M33: =IF(Data!B50>=D$9,Data!B50-D$9,0) -> 0 | N33: =IF(S33>0,LN(Data!J50),0) -> 0 | O33: 0 | P33: 0 | Q33: 0 | R33: 0 | S33: =IF(Data!B50>'B&R'!D$9,1,0) -> 0 | X33: 51393.825 | Y33: =EXP(-2*E$12*(X33/1440)*(-J$15)/(Data!V$23^2*LN('B&R'!J$12))) -> 0.9756805589
M34: =IF(Data!B51>=D$9,Data!B51-D$9,0) -> 0 | N34: =IF(S34>0,LN(Data!J51),0) -> 0 | O34: 0 | P34: 0 | Q34: 0 | R34: 0 | S34: =IF(Data!B51>'B&R'!D$9,1,0) -> 0 | X34: 53297.3 | Y34: =EXP(-2*E$12*(X34/1440)*(-J$15)/(Data!V$23^2*LN('B&R'!J$12))) -> 0.9747912868
B35: C coefficient calculated from Eq. 6.5(c) of Butler, The Design, Performance, and | M35: =IF(Data!B52>=D$9,Data!B52-D$9,0) -> 0 | N35: =IF(S35>0,LN(Data!J52),0) -> 0 | O35: 0 | P35: 0 | Q35: 0 | R35: 0 | S35: =IF(Data!B52>'B&R'!D$9,1,0) -> 0 | X35: 55200.775 | Y35: =EXP(-2*E$12*(X35/1440)*(-J$15)/(Data!V$23^2*LN('B&R'!J$12))) -> 0.9739028251
B36: Analysis of Slug Tests, CRC Press, 2000. | M36: =IF(Data!B53>=D$9,Data!B53-D$9,0) -> 0 | N36: =IF(S36>0,LN(Data!J53),0) -> 0 | O36: 0 | P36: 0 | Q36: 0 | R36: 0 | S36: =IF(Data!B53>'B&R'!D$9,1,0) -> 0 | X36: 57104.25 | Y36: =EXP(-2*E$12*(X36/1440)*(-J$15)/(Data!V$23^2*LN('B&R'!J$12))) -> 0.9730151733
M37: =IF(Data!B54>=D$9,Data!B54-D$9,0) -> 0 | N37: =IF(S37>0,LN(Data!J54),0) -> 0 | O37: 0 | P37: 0 | Q37: 0 | R37: 0 | S37: =IF(Data!B54>'B&R'!D$9,1,0) -> 0
M38: =IF(Data!B55>=D$9,Data!B55-D$9,0) -> 0 | N38: =IF(S38>0,LN(Data!J55),0) -> 0 | O38: 0 | P38: 0 | Q38: 0 | R38: 0 | S38: =IF(Data!B55>'B&R'!D$9,1,0) -> 0
M39: =IF(Data!B56>=D$9,Data!B56-D$9,0) -> 0 | N39: =IF(S39>0,LN(Data!J56),0) -> 0 | O39: 0 | P39: 0 | Q39: 0 | R39: 0 | S39: =IF(Data!B56>'B&R'!D$9,1,0) -> 0 | X39: =TRUNC(100*E12)/100 -> 0
M40: =IF(Data!B57>=D$9,Data!B57-D$9,0) -> 0 | N40: =IF(S40>0,LN(Data!J57),0) -> 0 | O40: 0 | P40: 0 | Q40: 0 | R40: 0 | S40: =IF(Data!B57>'B&R'!D$9,1,0) -> 0 | X40: =X39 -> 0
M41: =IF(Data!B58>=D$9,Data!B58-D$9,0) -> 0 | N41: =IF(S41>0,LN(Data!J58),0) -> 0 | O41: 0 | P41: 0 | Q41: 0 | R41: 0 | S41: =IF(Data!B58>'B&R'!D$9,1,0) -> 0 | X41: =CONCATENATE(" T = ",X40," ft2/d") -> T = 0 ft2/d
M42: =IF(Data!B59>=D$9,Data!B59-D$9,0) -> 0 | N42: =IF(S42>0,LN(Data!J59),0) -> 0 | O42: 0 | P42: 0 | Q42: 0 | R42: 0 | S42: =IF(Data!B59>'B&R'!D$9,1,0) -> 0
M43: =IF(Data!B60>=D$9,Data!B60-D$9,0) -> 0 | N43: =IF(S43>0,LN(Data!J60),0) -> 0 | O43: 0 | P43: 0 | Q43: 0 | R43: 0 | S43: =IF(Data!B60>'B&R'!D$9,1,0) -> 0
M44: =IF(Data!B61>=D$9,Data!B61-D$9,0) -> 0 | N44: =IF(S44>0,LN(Data!J61),0) -> 0 | O44: 0 | P44: 0 | Q44: 0 | R44: 0 | S44: =IF(Data!B61>'B&R'!D$9,1,0) -> 0
M45: =IF(Data!B62>=D$9,Data!B62-D$9,0) -> 0 | N45: =IF(S45>0,LN(Data!J62),0) -> 0 | O45: 0 | P45: 0 | Q45: 0 | R45: 0 | S45: =IF(Data!B62>'B&R'!D$9,1,0) -> 0
M46: =IF(Data!B63>=D$9,Data!B63-D$9,0) -> 0 | N46: =IF(S46>0,LN(Data!J63),0) -> 0 | O46: 0 | P46: 0 | Q46: 0 | R46: 0 | S46: =IF(Data!B63>'B&R'!D$9,1,0) -> 0
M47: =IF(Data!B64>=D$9,Data!B64-D$9,0) -> 0 | N47: =IF(S47>0,LN(Data!J64),0) -> 0 | O47: 0 | P47: 0 | Q47: 0 | R47: 0 | S47: =IF(Data!B64>'B&R'!D$9,1,0) -> 0
M48: =IF(Data!B65>=D$9,Data!B65-D$9,0) -> 0 | N48: =IF(S48>0,LN(Data!J65),0) -> 0 | O48: =M48^2 -> 0 | P48: =M48*N48 -> 0 | Q48: 0 | R48: =IF(M48>0,(N48-V$11-V$12*M48)/SQRT(V$14),0) -> 0 | S48: =IF(Data!B65>'B&R'!D$9,1,0) -> 0 | T48: =IF(S48=0,NA(),EXP(N48)/EXP(V$19)) -> 
M49: =IF(Data!B66>=D$9,Data!B66-D$9,0) -> 0 | N49: =IF(S49>0,LN(Data!J66),0) -> 0 | O49: 0 | P49: 0 | Q49: 0 | R49: 0 | S49: =IF(Data!B66>'B&R'!D$9,1,0) -> 0
M50: =IF(Data!B67>=D$9,Data!B67-D$9,0) -> 0 | N50: =IF(S50>0,LN(Data!J67),0) -> 0 | O50: 0 | P50: 0 | Q50: 0 | R50: 0 | S50: =IF(Data!B67>'B&R'!D$9,1,0) -> 0
M51: =IF(Data!B68>=D$9,Data!B68-D$9,0) -> 0 | N51: =IF(S51>0,LN(Data!J68),0) -> 0 | O51: 0 | P51: 0 | Q51: 0 | R51: 0 | S51: =IF(Data!B68>'B&R'!D$9,1,0) -> 0
M52: =IF(Data!B69>=D$9,Data!B69-D$9,0) -> 0 | N52: =IF(S52>0,LN(Data!J69),0) -> 0 | O52: 0 | P52: 0 | Q52: 0 | R52: 0 | S52: =IF(Data!B69>'B&R'!D$9,1,0) -> 0
M53: =IF(Data!B70>=D$9,Data!B70-D$9,0) -> 0 | N53: =IF(S53>0,LN(Data!J70),0) -> 0 | O53: 0 | P53: 0 | Q53: 0 | R53: 0 | S53: =IF(Data!B70>'B&R'!D$9,1,0) -> 0
M54: =IF(Data!B71>=D$9,Data!B71-D$9,0) -> 0 | N54: =IF(S54>0,LN(Data!J71),0) -> 0 | O54: 0 | P54: 0 | Q54: 0 | R54: 0 | S54: =IF(Data!B71>'B&R'!D$9,1,0) -> 0
M55: =IF(Data!B72>=D$9,Data!B72-D$9,0) -> 0 | N55: =IF(S55>0,LN(Data!J72),0) -> 0 | O55: 0 | P55: 0 | Q55: 0 | R55: 0 | S55: =IF(Data!B72>'B&R'!D$9,1,0) -> 0
M56: =IF(Data!B73>=D$9,Data!B73-D$9,0) -> 0 | N56: =IF(S56>0,LN(Data!J73),0) -> 0 | O56: 0 | P56: 0 | Q56: 0 | R56: 0 | S56: =IF(Data!B73>'B&R'!D$9,1,0) -> 0
M57: =IF(Data!B74>=D$9,Data!B74-D$9,0) -> 0 | N57: =IF(S57>0,LN(Data!J74),0) -> 0 | O57: 0 | P57: 0 | Q57: 0 | R57: 0 | S57: =IF(Data!B74>'B&R'!D$9,1,0) -> 0
M58: =IF(Data!B75>=D$9,Data!B75-D$9,0) -> 0 | N58: =IF(S58>0,LN(Data!J75),0) -> 0 | O58: 0 | P58: 0 | Q58: 0 | R58: 0 | S58: =IF(Data!B75>'B&R'!D$9,1,0) -> 0
M59: =IF(Data!B76>=D$9,Data!B76-D$9,0) -> 0 | N59: =IF(S59>0,LN(Data!J76),0) -> 0 | O59: 0 | P59: 0 | Q59: 0 | R59: 0 | S59: =IF(Data!B76>'B&R'!D$9,1,0) -> 0
M60: =IF(Data!B77>=D$9,Data!B77-D$9,0) -> 0 | N60: =IF(S60>0,LN(Data!J77),0) -> 0 | O60: 0 | P60: 0 | Q60: 0 | R60: 0 | S60: =IF(Data!B77>'B&R'!D$9,1,0) -> 0
M61: =IF(Data!B78>=D$9,Data!B78-D$9,0) -> 0 | N61: =IF(S61>0,LN(Data!J78),0) -> 0 | O61: =M61^2 -> 0 | P61: =M61*N61 -> 0 | Q61: 0 | R61: =IF(M61>0,(N61-V$11-V$12*M61)/SQRT(V$14),0) -> 0 | S61: =IF(Data!B78>'B&R'!D$9,1,0) -> 0 | T61: =IF(S61=0,NA(),EXP(N61)/EXP(V$19)) -> 
M62: =IF(Data!B79>=D$9,Data!B79-D$9,0) -> 0 | N62: =IF(S62>0,LN(Data!J79),0) -> 0 | O62: 0 | P62: 0 | Q62: 0 | R62: 0 | S62: =IF(Data!B79>'B&R'!D$9,1,0) -> 0
M63: =IF(Data!B80>=D$9,Data!B80-D$9,0) -> 0 | N63: =IF(S63>0,LN(Data!J80),0) -> 0 | O63: 0 | P63: 0 | Q63: 0 | R63: 0 | S63: =IF(Data!B80>'B&R'!D$9,1,0) -> 0
M64: =IF(Data!B81>=D$9,Data!B81-D$9,0) -> 0 | N64: =IF(S64>0,LN(Data!J81),0) -> 0 | O64: 0 | P64: 0 | Q64: 0 | R64: 0 | S64: =IF(Data!B81>'B&R'!D$9,1,0) -> 0

Sheet C&J
A1: Cooper and Jacob (1946)
A2: Well Designation: | C2: =IF(Data!B1 > 0,Data!B1,"") -> YYY | W2: =E10 -> 15 | X2: =E9 -> 25 | Y2: 0
A3: Date: | C3: =IF(Data!B2 > 0,Data!B2,"") -> date | P3: 0 | Q3: =MAX(P9:Q58) -> 1526.082604 | W3: =W2 -> 15 | X3: =X2 -> 25 | Y3: =J50 -> 70
P4: 0 | Q4: =Q3 -> 1526.082604
X5: =MAX(T9:T66)+10 -> 41835
N7: Index | O7: ti | P7: Vi (meas) | Q7: Vi (calc) | R7: SE | T7: Time | U7: Qn/sn | W7: Index | X7: Time | Y7: Qn/sn | Z7: A-Time
B8: Enter early time cut-off for least-squares model fit
C9: Timecut (min): | E9: 25 | F9: <- Enter or change values here | N9: 1 | O9: =IF(Data!L24>=E$9,Data!L24-E$10,0) -> 0 | P9: =IF(O9>0,7.48*Data!M24*(Data!B24-Data!B23)/1440,0) -> 0 | Q9: =IF(O9>0,7.48*(4*PI()*(E$16/1440)*Data!N24)*(Data!B24-Data!B23)/LN(0.56146/((Data!P24^2*'C&J'!E$15)/(4*('C&J'!E$16/1440)*O9))),0) -> 0 | R9: =(P9-Q9)^2 -> 0 | T9: =Data!L24 -> 1.5 | U9: =Data!M24/Data!N24 -> 4.380105142 | W9: 0 | X9: =2+(X$5-2)*W9/50 -> 2 | Y9: =4*PI()*E$18/LN(0.56146/(Data!V$23^2*'C&J'!E$15/(4*'C&J'!E$18*'C&J'!X9/1440))) -> 20.49350695 | Z9: =X9+E$10 -> 17
B10: Time Adjustment (min): | E10: 15 | N10: 2 | O10: =IF(Data!L25>=E$9,Data!L25-E$10,0) -> 0 | P10: =IF(O10>0,P9+7.48*Data!M25*(Data!B25-Data!B24)/1440,0) -> 0 | Q10: =IF(O10>0,Q9+7.48*(4*PI()*(E$16/1440)*Data!N25)*(Data!B25-Data!B24)/LN(0.56146/((Data!P25^2*'C&J'!E$15)/(4*('C&J'!E$16/1440)*O10))),0) -> 0 | R10: =(P10-Q10)^2 -> 0 | T10: =Data!L25 -> 2.5 | U10: =Data!M25/Data!N25 -> 2.854203852 | W10: 1 | X10: =2+(X$5-2)*W10/50 -> 838.66 | Y10: =4*PI()*E$18/LN(0.56146/(Data!V$23^2*'C&J'!E$15/(4*'C&J'!E$18*'C&J'!X10/1440))) -> 5.422090711 | Z10: =X10+E$10 -> 853.66
N11: 3 | O11: =IF(Data!L26>=E$9,Data!L26-E$10,0) -> 0 | P11: =IF(O11>0,P10+7.48*Data!M26*(Data!B26-Data!B25)/1440,0) -> 0 | Q11: =IF(O11>0,Q10+7.48*(4*PI()*(E$16/1440)*Data!N26)*(Data!B26-Data!B25)/LN(0.56146/((Data!P26^2*'C&J'!E$15)/(4*('C&J'!E$16/1440)*O11))),0) -> 0 | R11: 0 | T11: =Data!L26 -> 3.5 | U11: =Data!M26/Data!N26 -> 3.558835428 | W11: 2 | X11: 1675.32 | Y11: =4*PI()*E$18/LN(0.56146/(Data!V$23^2*'C&J'!E$15/(4*'C&J'!E$18*'C&J'!X11/1440))) -> 5.000681693 | Z11: 1690.32
B12: Trial Sn: | E12: 0.05 | F12: <-- Enter d for default or enter Sn value | N12: 4 | O12: =IF(Data!L27>=E$9,Data!L27-E$10,0) -> 0 | P12: =IF(O12>0,P11+7.48*Data!M27*(Data!B27-Data!B26)/1440,0) -> 0 | Q12: =IF(O12>0,Q11+7.48*(4*PI()*(E$16/1440)*Data!N27)*(Data!B27-Data!B26)/LN(0.56146/((Data!P27^2*'C&J'!E$15)/(4*('C&J'!E$16/1440)*O12))),0) -> 0 | R12: 0 | T12: =Data!L27 -> 4.5 | U12: =Data!M27/Data!N27 -> 2.455692371 | W12: 3 | X12: 2511.98 | Y12: =4*PI()*E$18/LN(0.56146/(Data!V$23^2*'C&J'!E$15/(4*'C&J'!E$18*'C&J'!X12/1440))) -> 4.783064614 | Z12: 2526.98
N13: 5 | O13: =IF(Data!L28>=E$9,Data!L28-E$10,0) -> 0 | P13: =IF(O13>0,P12+7.48*Data!M28*(Data!B28-Data!B27)/1440,0) -> 0 | Q13: =IF(O13>0,Q12+7.48*(4*PI()*(E$16/1440)*Data!N28)*(Data!B28-Data!B27)/LN(0.56146/((Data!P28^2*'C&J'!E$15)/(4*('C&J'!E$16/1440)*O13))),0) -> 0 | R13: 0 | T13: =Data!L28 -> 5.5 | U13: =Data!M28/Data!N28 -> 2.52371709 | W13: 4 | X13: 3348.64 | Y13: =4*PI()*E$18/LN(0.56146/(Data!V$23^2*'C&J'!E$15/(4*'C&J'!E$18*'C&J'!X13/1440))) -> 4.639765018 | Z13: 3363.64
B14: Root-Mean-Square Error: | E14: =SQRT(SUM(R9:R58)) -> 1768.455935 | F14: <-- Minimize this using "Solver" | N14: 6 | O14: =IF(Data!L29>=E$9,Data!L29-E$10,0) -> 0 | P14: =IF(O14>0,P13+7.48*Data!M29*(Data!B29-Data!B28)/1440,0) -> 0 | Q14: =IF(O14>0,Q13+7.48*(4*PI()*(E$16/1440)*Data!N29)*(Data!B29-Data!B28)/LN(0.56146/((Data!P29^2*'C&J'!E$15)/(4*('C&J'!E$16/1440)*O14))),0) -> 0 | R14: 0 | T14: =Data!L29 -> 6.5 | U14: =Data!M29/Data!N29 -> 2.595617862 | W14: 5 | X14: 4185.3 | Y14: =4*PI()*E$18/LN(0.56146/(Data!V$23^2*'C&J'!E$15/(4*'C&J'!E$18*'C&J'!X14/1440))) -> 4.534375883 | Z14: 4200.3
E15: =IF(E12="d",0.025*SQRT(E16),E12) -> 0.05 | F15: <-- Working Sn | N15: 7 | O15: =IF(Data!L30>=E$9,Data!L30-E$10,0) -> 0 | P15: =IF(O15>0,P14+7.48*Data!M30*(Data!B30-Data!B29)/1440,0) -> 0 | Q15: =IF(O15>0,Q14+7.48*(4*PI()*(E$16/1440)*Data!N30)*(Data!B30-Data!B29)/LN(0.56146/((Data!P30^2*'C&J'!E$15)/(4*('C&J'!E$16/1440)*O15))),0) -> 0 | R15: 0 | T15: =Data!L30 -> 7.5 | U15: =Data!M30/Data!N30 -> 2.671735688 | W15: 6 | X15: 5021.96 | Y15: =4*PI()*E$18/LN(0.56146/(Data!V$23^2*'C&J'!E$15/(4*'C&J'!E$18*'C&J'!X15/1440))) -> 4.451747948 | Z15: 5036.96
B16: Trial Tn (ft2/d): | E16: 3.542905613 | F16: <-- By changing Tn through "Solver" | N16: 8 | O16: =IF(Data!L31>=E$9,Data!L31-E$10,0) -> 0 | P16: =IF(O16>0,P15+7.48*Data!M31*(Data!B31-Data!B30)/1440,0) -> 0 | Q16: =IF(O16>0,Q15+7.48*(4*PI()*(E$16/1440)*Data!N31)*(Data!B31-Data!B30)/LN(0.56146/((Data!P31^2*'C&J'!E$15)/(4*('C&J'!E$16/1440)*O16))),0) -> 0 | R16: 0 | T16: =Data!L31 -> 8.5 | U16: =Data!M31/Data!N31 -> 2.752452778 | W16: 7 | X16: 5858.62 | Y16: =4*PI()*E$18/LN(0.56146/(Data!V$23^2*'C&J'!E$15/(4*'C&J'!E$18*'C&J'!X16/1440))) -> 4.384196256 | Z16: 5873.62
G17: Add constraint Tn > 0.00001 | N17: 9 | O17: =IF(Data!L32>=E$9,Data!L32-E$10,0) -> 0 | P17: =IF(O17>0,P16+7.48*Data!M32*(Data!B32-Data!B31)/1440,0) -> 0 | Q17: =IF(O17>0,Q16+7.48*(4*PI()*(E$16/1440)*Data!N32)*(Data!B32-Data!B31)/LN(0.56146/((Data!P32^2*'C&J'!E$15)/(4*('C&J'!E$16/1440)*O17))),0) -> 0 | R17: 0 | T17: =Data!L32 -> 9.5 | U17: =Data!M32/Data!N32 -> 5.676397941 | W17: 8 | X17: 6695.28 | Y17: =4*PI()*E$18/LN(0.56146/(Data!V$23^2*'C&J'!E$15/(4*'C&J'!E$18*'C&J'!X17/1440))) -> 4.327313133 | Z17: 6710.28
B18: Model Result: | D18: Tn (ft2/d) = | E18: =E16 -> 3.542905613 | N18: 10 | O18: =IF(Data!L33>=E$9,Data!L33-E$10,0) -> 0 | P18: =IF(O18>0,P17+7.48*Data!M33*(Data!B33-Data!B32)/1440,0) -> 0 | Q18: =IF(O18>0,Q17+7.48*(4*PI()*(E$16/1440)*Data!N33)*(Data!B33-Data!B32)/LN(0.56146/((Data!P33^2*'C&J'!E$15)/(4*('C&J'!E$16/1440)*O18))),0) -> 0 | R18: 0 | T18: =Data!L33 -> 15 | U18: =Data!M33/Data!N33 -> 0.5093796395 | W18: 9 | X18: 7531.94 | Y18: =4*PI()*E$18/LN(0.56146/(Data!V$23^2*'C&J'!E$15/(4*'C&J'!E$18*'C&J'!X18/1440))) -> 4.27834818 | Z18: 7546.94
N19: 11 | O19: =IF(Data!L34>=E$9,Data!L34-E$10,0) -> 0 | P19: =IF(O19>0,P18+7.48*Data!M34*(Data!B34-Data!B33)/1440,0) -> 0 | Q19: =IF(O19>0,Q18+7.48*(4*PI()*(E$16/1440)*Data!N34)*(Data!B34-Data!B33)/LN(0.56146/((Data!P34^2*'C&J'!E$15)/(4*('C&J'!E$16/1440)*O19))),0) -> 0 | R19: 0 | T19: =Data!L34 -> 23 | U19: =Data!M34/Data!N34 -> 1.35574683 | W19: 10 | X19: 8368.6 | Y19: =4*PI()*E$18/LN(0.56146/(Data!V$23^2*'C&J'!E$15/(4*'C&J'!E$18*'C&J'!X19/1440))) -> 4.235475829 | Z19: 8383.6
N20: 12 | O20: =IF(Data!L35>=E$9,Data!L35-E$10,0) -> 13 | P20: =IF(O20>0,P19+7.48*Data!M35*(Data!B35-Data!B34)/1440,0) -> 0.035493452 | Q20: =IF(O20>0,Q19+7.48*(4*PI()*(E$16/1440)*Data!N35)*(Data!B35-Data!B34)/LN(0.56146/((Data!P35^2*'C&J'!E$15)/(4*('C&J'!E$16/1440)*O20))),0) -> 0.348817566 | R20: 0.0981720004 | T20: =Data!L35 -> 28 | U20: =Data!M35/Data!N35 -> 1.120158036 | W20: 11 | X20: 9205.26 | Y20: =4*PI()*E$18/LN(0.56146/(Data!V$23^2*'C&J'!E$15/(4*'C&J'!E$18*'C&J'!X20/1440))) -> 4.197425706 | Z20: 9220.26
N21: 13 | O21: =IF(Data!L36>=E$9,Data!L36-E$10,0) -> 20 | P21: =IF(O21>0,P20+7.48*Data!M36*(Data!B36-Data!B35)/1440,0) -> 0.1005647807 | Q21: =IF(O21>0,Q20+7.48*(4*PI()*(E$16/1440)*Data!N36)*(Data!B36-Data!B35)/LN(0.56146/((Data!P36^2*'C&J'!E$15)/(4*('C&J'!E$16/1440)*O21))),0) -> 1.123996083 | R21: 1.04741163 | T21: =Data!L36 -> 35 | U21: =Data!M36/Data!N36 -> 0.8351400471 | W21: 12 | X21: 10041.92 | Y21: =4*PI()*E$18/LN(0.56146/(Data!V$23^2*'C&J'!E$15/(4*'C&J'!E$18*'C&J'!X21/1440))) -> 4.163280097 | Z21: 10056.92
N22: 14 | O22: =IF(Data!L37>=E$9,Data!L37-E$10,0) -> 30 | P22: =IF(O22>0,P21+7.48*Data!M37*(Data!B37-Data!B36)/1440,0) -> 0.1656361093 | Q22: =IF(O22>0,Q21+7.48*(4*PI()*(E$16/1440)*Data!N37)*(Data!B37-Data!B36)/LN(0.56146/((Data!P37^2*'C&J'!E$15)/(4*('C&J'!E$16/1440)*O22))),0) -> 1.818189259 | R22: 2.730931913 | T22: =Data!L37 -> 45 | U22: =Data!M37/Data!N37 -> 0.8550921984 | W22: 13 | X22: 10878.58 | Y22: =4*PI()*E$18/LN(0.56146/(Data!V$23^2*'C&J'!E$15/(4*'C&J'!E$18*'C&J'!X22/1440))) -> 4.13235561 | Z22: 10893.58
N23: 15 | O23: =IF(Data!L38>=E$9,Data!L38-E$10,0) -> 40 | P23: =IF(O23>0,P22+7.48*Data!M38*(Data!B38-Data!B37)/1440,0) -> 0.2366230133 | Q23: =IF(O23>0,Q22+7.48*(4*PI()*(E$16/1440)*Data!N38)*(Data!B38-Data!B37)/LN(0.56146/((Data!P38^2*'C&J'!E$15)/(4*('C&J'!E$16/1440)*O23))),0) -> 2.460316676 | R23: 4.944813505 | T23: =Data!L38 -> 55 | U23: =Data!M38/Data!N38 -> 0.9523294804 | W23: 14 | X23: 11715.24 | Y23: =4*PI()*E$18/LN(0.56146/(Data!V$23^2*'C&J'!E$15/(4*'C&J'!E$18*'C&J'!X23/1440))) -> 4.104130389 | Z23: 11730.24
N24: 16 | O24: =IF(Data!L39>=E$9,Data!L39-E$10,0) -> 50 | P24: =IF(O24>0,P23+7.48*Data!M39*(Data!B39-Data!B38)/1440,0) -> 0.2602853147 | Q24: =IF(O24>0,Q23+7.48*(4*PI()*(E$16/1440)*Data!N39)*(Data!B39-Data!B38)/LN(0.56146/((Data!P39^2*'C&J'!E$15)/(4*('C&J'!E$16/1440)*O24))),0) -> 3.065143058 | R24: 7.867226959 | T24: =Data!L39 -> 65 | U24: =Data!M39/Data!N39 -> 0.3230715849 | W24: 15 | X24: 12551.9 | Y24: =4*PI()*E$18/LN(0.56146/(Data!V$23^2*'C&J'!E$15/(4*'C&J'!E$18*'C&J'!X24/1440))) -> 4.078197403 | Z24: 12566.9
N25: 17 | O25: =IF(Data!L40>=E$9,Data!L40-E$10,0) -> 60 | P25: =IF(O25>0,P24+7.48*Data!M40*(Data!B40-Data!B39)/1440,0) -> 0.2898631913 | Q25: =IF(O25>0,Q24+7.48*(4*PI()*(E$16/1440)*Data!N40)*(Data!B40-Data!B39)/LN(0.56146/((Data!P40^2*'C&J'!E$15)/(4*('C&J'!E$16/1440)*O25))),0) -> 3.641886345 | R25: 11.23605922 | T25: =Data!L40 -> 75 | U25: =Data!M40/Data!N40 -> 0.4096501212 | W25: 16 | X25: 13388.56 | Y25: =4*PI()*E$18/LN(0.56146/(Data!V$23^2*'C&J'!E$15/(4*'C&J'!E$18*'C&J'!X25/1440))) -> 4.054233391 | Z25: 13403.56
N26: 18 | O26: =IF(Data!L41>=E$9,Data!L41-E$10,0) -> 70 | P26: =IF(O26>0,P25+7.48*Data!M41*(Data!B41-Data!B40)/1440,0) -> 0.3135254927 | Q26: =IF(O26>0,Q25+7.48*(4*PI()*(E$16/1440)*Data!N41)*(Data!B41-Data!B40)/LN(0.56146/((Data!P41^2*'C&J'!E$15)/(4*('C&J'!E$16/1440)*O26))),0) -> 4.197051593 | R26: 15.08177497 | T26: =Data!L41 -> 85 | U26: =Data!M41/Data!N41 -> 0.3312952253 | W26: 17 | X26: 14225.22 | Y26: =4*PI()*E$18/LN(0.56146/(Data!V$23^2*'C&J'!E$15/(4*'C&J'!E$18*'C&J'!X26/1440))) -> 4.031977576 | Z26: 14240.22
N27: 19 | O27: =IF(Data!L42>=E$9,Data!L42-E$10,0) -> 80 | P27: =IF(O27>0,P26+7.48*Data!M42*(Data!B42-Data!B41)/1440,0) -> 0.337187794 | Q27: =IF(O27>0,Q26+7.48*(4*PI()*(E$16/1440)*Data!N42)*(Data!B42-Data!B41)/LN(0.56146/((Data!P42^2*'C&J'!E$15)/(4*('C&J'!E$16/1440)*O27))),0) -> 4.735623654 | R27: 19.34623802 | T27: =Data!L42 -> 95 | U27: =Data!M42/Data!N42 -> 0.3337222965 | W27: 18 | X27: 15061.88 | Y27: =4*PI()*E$18/LN(0.56146/(Data!V$23^2*'C&J'!E$15/(4*'C&J'!E$18*'C&J'!X27/1440))) -> 4.011216703 | Z27: 15076.88
N28: 20 | O28: =IF(Data!L43>=E$9,Data!L43-E$10,0) -> 535 | P28: =IF(O28>0,P27+7.48*Data!M43*(Data!B43-Data!B42)/1440,0) -> 0.6270509853 | Q28: =IF(O28>0,Q27+7.48*(4*PI()*(E$16/1440)*Data!N43)*(Data!B43-Data!B42)/LN(0.56146/((Data!P43^2*'C&J'!E$15)/(4*('C&J'!E$16/1440)*O28))),0) -> 41.34001708 | R28: 1657.545608 | T28: =Data!L43 -> 550 | U28: =Data!M43/Data!N43 -> 0.04542331258 | W28: 19 | X28: 15898.54 | Y28: =4*PI()*E$18/LN(0.56146/(Data!V$23^2*'C&J'!E$15/(4*'C&J'!E$18*'C&J'!X28/1440))) -> 3.991774273 | Z28: 15913.54
N29: 21 | O29: =IF(Data!L44>=E$9,Data!L44-E$10,0) -> 1710 | P29: =IF(O29>0,P28+7.48*Data!M44*(Data!B44-Data!B43)/1440,0) -> 0.692122314 | Q29: =IF(O29>0,Q28+7.48*(4*PI()*(E$16/1440)*Data!N44)*(Data!B44-Data!B43)/LN(0.56146/((Data!P44^2*'C&J'!E$15)/(4*('C&J'!E$16/1440)*O29))),0) -> 94.88920199 | R29: 8873.089819 | T29: =Data!L44 -> 1725 | U29: =Data!M44/Data!N44 -> 0.006062722665 | W29: 20 | X29: 16735.2 | Y29: =4*PI()*E$18/LN(0.56146/(Data!V$23^2*'C&J'!E$15/(4*'C&J'!E$18*'C&J'!X29/1440))) -> 3.973502639 | Z29: 16750.2
N30: 22 | O30: =IF(Data!L45>=E$9,Data!L45-E$10,0) -> 3160 | P30: =IF(O30>0,P29+7.48*Data!M45*(Data!B45-Data!B44)/1440,0) -> 0.7157846154 | Q30: =IF(O30>0,Q29+7.48*(4*PI()*(E$16/1440)*Data!N45)*(Data!B45-Data!B44)/LN(0.56146/((Data!P45^2*'C&J'!E$15)/(4*('C&J'!E$16/1440)*O30))),0) -> 147.2759667 | R30: 21479.88697 | T30: =Data!L45 -> 3175 | U30: =Data!M45/Data!N45 -> 0.002108451445 | W30: 21 | X30: 17571.86 | Y30: =4*PI()*E$18/LN(0.56146/(Data!V$23^2*'C&J'!E$15/(4*'C&J'!E$18*'C&J'!X30/1440))) -> 3.956277118 | Z30: 17586.86
N31: 23 | O31: =IF(Data!L46>=E$9,Data!L46-E$10,0) -> 4610 | P31: =IF(O31>0,P30+7.48*Data!M46*(Data!B46-Data!B45)/1440,0) -> 0.8104338207 | Q31: =IF(O31>0,Q30+7.48*(4*PI()*(E$16/1440)*Data!N46)*(Data!B46-Data!B45)/LN(0.56146/((Data!P46^2*'C&J'!E$15)/(4*('C&J'!E$16/1440)*O31))),0) -> 194.792735 | R31: 37629.13318 | T31: =Data!L46 -> 4625 | U31: =Data!M46/Data!N46 -> 0.008944036024 | W31: 22 | X31: 18408.52 | Y31: =4*PI()*E$18/LN(0.56146/(Data!V$23^2*'C&J'!E$15/(4*'C&J'!E$18*'C&J'!X31/1440))) -> 3.939991505 | Z31: 18423.52
N32: 24 | O32: =IF(Data!L47>=E$9,Data!L47-E$10,0) -> 17280 | P32: =IF(O32>0,P31+7.48*Data!M47*(Data!B47-Data!B46)/1440,0) -> 0.8577584234 | Q32: =IF(O32>0,Q31+7.48*(4*PI()*(E$16/1440)*Data!N47)*(Data!B47-Data!B46)/LN(0.56146/((Data!P47^2*'C&J'!E$15)/(4*('C&J'!E$16/1440)*O32))),0) -> 856.1119007 | R32: 731459.6478 | T32: =Data!L47 -> 17295 | U32: =Data!M47/Data!N47 -> 0.0002835368019 | W32: 23 | X32: 19245.18 | Y32: =4*PI()*E$18/LN(0.56146/(Data!V$23^2*'C&J'!E$15/(4*'C&J'!E$18*'C&J'!X32/1440))) -> 3.924554642 | Z32: 19260.18
N33: 25 | O33: =IF(Data!L48>=E$9,Data!L48-E$10,0) -> 41810 | P33: =IF(O33>0,P32+7.48*Data!M48*(Data!B48-Data!B47)/1440,0) -> 0.869589574 | Q33: =IF(O33>0,Q32+7.48*(4*PI()*(E$16/1440)*Data!N48)*(Data!B48-Data!B47)/LN(0.56146/((Data!P48^2*'C&J'!E$15)/(4*('C&J'!E$16/1440)*O33))),0) -> 1526.082604 | R33: 2326274.739 | T33: =Data!L48 -> 41825 | U33: =Data!M48/Data!N48 -> 6.486799224e-05 | W33: 24 | X33: 20081.84 | Y33: =4*PI()*E$18/LN(0.56146/(Data!V$23^2*'C&J'!E$15/(4*'C&J'!E$18*'C&J'!X33/1440))) -> 3.909887729 | Z33: 20096.84
N34: 26 | O34: =IF(Data!L49>=E$9,Data!L49-E$10,0) -> 0 | P34: =IF(O34>0,P33+7.48*Data!M49*(Data!B49-Data!B48)/1440,0) -> 0 | Q34: =IF(O34>0,Q33+7.48*(4*PI()*(E$16/1440)*Data!N49)*(Data!B49-Data!B48)/LN(0.56146/((Data!P49^2*'C&J'!E$15)/(4*('C&J'!E$16/1440)*O34))),0) -> 0 | R34: 0 | T34: =Data!L49 -> 0 | U34: =Data!M49/Data!N49 ->  | W34: 25 | X34: 20918.5 | Y34: =4*PI()*E$18/LN(0.56146/(Data!V$23^2*'C&J'!E$15/(4*'C&J'!E$18*'C&J'!X34/1440))) -> 3.895922214 | Z34: 20933.5
N35: 27 | O35: =IF(Data!L50>=E$9,Data!L50-E$10,0) -> 0 | P35: =IF(O35>0,P34+7.48*Data!M50*(Data!B50-Data!B49)/1440,0) -> 0 | Q35: =IF(O35>0,Q34+7.48*(4*PI()*(E$16/1440)*Data!N50)*(Data!B50-Data!B49)/LN(0.56146/((Data!P50^2*'C&J'!E$15)/(4*('C&J'!E$16/1440)*O35))),0) -> 0 | R35: 0 | T35: =Data!L50 -> 0 | U35: =Data!M50/Data!N50 ->  | W35: 26 | X35: 21755.16 | Y35: =4*PI()*E$18/LN(0.56146/(Data!V$23^2*'C&J'!E$15/(4*'C&J'!E$18*'C&J'!X35/1440))) -> 3.88259811 | Z35: 21770.16
N36: 28 | O36: =IF(Data!L51>=E$9,Data!L51-E$10,0) -> 0 | P36: =IF(O36>0,P35+7.48*Data!M51*(Data!B51-Data!B50)/1440,0) -> 0 | Q36: =IF(O36>0,Q35+7.48*(4*PI()*(E$16/1440)*Data!N51)*(Data!B51-Data!B50)/LN(0.56146/((Data!P51^2*'C&J'!E$15)/(4*('C&J'!E$16/1440)*O36))),0) -> 0 | R36: 0 | T36: =Data!L51 -> 0 | U36: =Data!M51/Data!N51 ->  | W36: 27 | X36: 22591.82 | Y36: =4*PI()*E$18/LN(0.56146/(Data!V$23^2*'C&J'!E$15/(4*'C&J'!E$18*'C&J'!X36/1440))) -> 3.869862638 | Z36: 22606.82
N37: 29 | O37: =IF(Data!L52>=E$9,Data!L52-E$10,0) -> 0 | P37: =IF(O37>0,P36+7.48*Data!M52*(Data!B52-Data!B51)/1440,0) -> 0 | Q37: =IF(O37>0,Q36+7.48*(4*PI()*(E$16/1440)*Data!N52)*(Data!B52-Data!B51)/LN(0.56146/((Data!P52^2*'C&J'!E$15)/(4*('C&J'!E$16/1440)*O37))),0) -> 0 | R37: 0 | T37: =Data!L52 -> 0 | U37: =Data!M52/Data!N52 ->  | W37: 28 | X37: 23428.48 | Y37: =4*PI()*E$18/LN(0.56146/(Data!V$23^2*'C&J'!E$15/(4*'C&J'!E$18*'C&J'!X37/1440))) -> 3.857669135 | Z37: 23443.48
N38: 30 | O38: =IF(Data!L53>=E$9,Data!L53-E$10,0) -> 0 | P38: =IF(O38>0,P37+7.48*Data!M53*(Data!B53-Data!B52)/1440,0) -> 0 | Q38: =IF(O38>0,Q37+7.48*(4*PI()*(E$16/1440)*Data!N53)*(Data!B53-Data!B52)/LN(0.56146/((Data!P53^2*'C&J'!E$15)/(4*('C&J'!E$16/1440)*O38))),0) -> 0 | R38: 0 | T38: =Data!L53 -> 0 | U38: =Data!M53/Data!N53 ->  | W38: 29 | X38: 24265.14 | Y38: =4*PI()*E$18/LN(0.56146/(Data!V$23^2*'C&J'!E$15/(4*'C&J'!E$18*'C&J'!X38/1440))) -> 3.84597615 | Z38: 24280.14
N39: 31 | O39: =IF(Data!L54>=E$9,Data!L54-E$10,0) -> 0 | P39: =IF(O39>0,P38+7.48*Data!M54*(Data!B54-Data!B53)/1440,0) -> 0 | Q39: =IF(O39>0,Q38+7.48*(4*PI()*(E$16/1440)*Data!N54)*(Data!B54-Data!B53)/LN(0.56146/((Data!P54^2*'C&J'!E$15)/(4*('C&J'!E$16/1440)*O39))),0) -> 0 | R39: 0 | T39: =Data!L54 -> 0 | U39: =Data!M54/Data!N54 ->  | W39: 30 | X39: 25101.8 | Y39: =4*PI()*E$18/LN(0.56146/(Data!V$23^2*'C&J'!E$15/(4*'C&J'!E$18*'C&J'!X39/1440))) -> 3.834746708 | Z39: 25116.8
N40: 32 | O40: =IF(Data!L55>=E$9,Data!L55-E$10,0) -> 0 | P40: =IF(O40>0,P39+7.48*Data!M55*(Data!B55-Data!B54)/1440,0) -> 0 | Q40: =IF(O40>0,Q39+7.48*(4*PI()*(E$16/1440)*Data!N55)*(Data!B55-Data!B54)/LN(0.56146/((Data!P55^2*'C&J'!E$15)/(4*('C&J'!E$16/1440)*O40))),0) -> 0 | R40: 0 | T40: =Data!L55 -> 0 | U40: =Data!M55/Data!N55 ->  | W40: 31 | X40: 25938.46 | Y40: =4*PI()*E$18/LN(0.56146/(Data!V$23^2*'C&J'!E$15/(4*'C&J'!E$18*'C&J'!X40/1440))) -> 3.823947691 | Z40: 25953.46
N41: 33 | O41: =IF(Data!L56>=E$9,Data!L56-E$10,0) -> 0 | P41: =IF(O41>0,P40+7.48*Data!M56*(Data!B56-Data!B55)/1440,0) -> 0 | Q41: =IF(O41>0,Q40+7.48*(4*PI()*(E$16/1440)*Data!N56)*(Data!B56-Data!B55)/LN(0.56146/((Data!P56^2*'C&J'!E$15)/(4*('C&J'!E$16/1440)*O41))),0) -> 0 | R41: 0 | T41: =Data!L56 -> 0 | U41: =Data!M56/Data!N56 ->  | W41: 32 | X41: 26775.12 | Y41: =4*PI()*E$18/LN(0.56146/(Data!V$23^2*'C&J'!E$15/(4*'C&J'!E$18*'C&J'!X41/1440))) -> 3.813549332 | Z41: 26790.12
N42: 34 | O42: =IF(Data!L57>=E$9,Data!L57-E$10,0) -> 0 | P42: =IF(O42>0,P41+7.48*Data!M57*(Data!B57-Data!B56)/1440,0) -> 0 | Q42: =IF(O42>0,Q41+7.48*(4*PI()*(E$16/1440)*Data!N57)*(Data!B57-Data!B56)/LN(0.56146/((Data!P57^2*'C&J'!E$15)/(4*('C&J'!E$16/1440)*O42))),0) -> 0 | R42: 0 | T42: =Data!L57 -> 0 | U42: =Data!M57/Data!N57 ->  | W42: 33 | X42: 27611.78 | Y42: =4*PI()*E$18/LN(0.56146/(Data!V$23^2*'C&J'!E$15/(4*'C&J'!E$18*'C&J'!X42/1440))) -> 3.803524776 | Z42: 27626.78
N43: 35 | O43: =IF(Data!L58>=E$9,Data!L58-E$10,0) -> 0 | P43: =IF(O43>0,P42+7.48*Data!M58*(Data!B58-Data!B57)/1440,0) -> 0 | Q43: =IF(O43>0,Q42+7.48*(4*PI()*(E$16/1440)*Data!N58)*(Data!B58-Data!B57)/LN(0.56146/((Data!P58^2*'C&J'!E$15)/(4*('C&J'!E$16/1440)*O43))),0) -> 0 | R43: 0 | T43: =Data!L58 -> 0 | U43: =Data!M58/Data!N58 ->  | W43: 34 | X43: 28448.44 | Y43: =4*PI()*E$18/LN(0.56146/(Data!V$23^2*'C&J'!E$15/(4*'C&J'!E$18*'C&J'!X43/1440))) -> 3.793849722 | Z43: 28463.44
N44: 36 | O44: =IF(Data!L59>=E$9,Data!L59-E$10,0) -> 0 | P44: =IF(O44>0,P43+7.48*Data!M59*(Data!B59-Data!B58)/1440,0) -> 0 | Q44: =IF(O44>0,Q43+7.48*(4*PI()*(E$16/1440)*Data!N59)*(Data!B59-Data!B58)/LN(0.56146/((Data!P59^2*'C&J'!E$15)/(4*('C&J'!E$16/1440)*O44))),0) -> 0 | R44: 0 | T44: =Data!L59 -> 0 | U44: =Data!M59/Data!N59 ->  | W44: 35 | X44: 29285.1 | Y44: =4*PI()*E$18/LN(0.56146/(Data!V$23^2*'C&J'!E$15/(4*'C&J'!E$18*'C&J'!X44/1440))) -> 3.784502111 | Z44: 29300.1
N45: 37 | O45: =IF(Data!L60>=E$9,Data!L60-E$10,0) -> 0 | P45: =IF(O45>0,P44+7.48*Data!M60*(Data!B60-Data!B59)/1440,0) -> 0 | Q45: =IF(O45>0,Q44+7.48*(4*PI()*(E$16/1440)*Data!N60)*(Data!B60-Data!B59)/LN(0.56146/((Data!P60^2*'C&J'!E$15)/(4*('C&J'!E$16/1440)*O45))),0) -> 0 | R45: 0 | T45: =Data!L60 -> 0 | U45: =Data!M60/Data!N60 ->  | W45: 36 | X45: 30121.76 | Y45: =4*PI()*E$18/LN(0.56146/(Data!V$23^2*'C&J'!E$15/(4*'C&J'!E$18*'C&J'!X45/1440))) -> 3.775461859 | Z45: 30136.76
N46: 38 | O46: =IF(Data!L61>=E$9,Data!L61-E$10,0) -> 0 | P46: =IF(O46>0,P45+7.48*Data!M61*(Data!B61-Data!B60)/1440,0) -> 0 | Q46: =IF(O46>0,Q45+7.48*(4*PI()*(E$16/1440)*Data!N61)*(Data!B61-Data!B60)/LN(0.56146/((Data!P61^2*'C&J'!E$15)/(4*('C&J'!E$16/1440)*O46))),0) -> 0 | R46: 0 | T46: =Data!L61 -> 0 | U46: =Data!M61/Data!N61 ->  | W46: 37 | X46: 30958.42 | Y46: =4*PI()*E$18/LN(0.56146/(Data!V$23^2*'C&J'!E$15/(4*'C&J'!E$18*'C&J'!X46/1440))) -> 3.766710636 | Z46: 30973.42
N47: 39 | O47: =IF(Data!L62>=E$9,Data!L62-E$10,0) -> 0 | P47: =IF(O47>0,P46+7.48*Data!M62*(Data!B62-Data!B61)/1440,0) -> 0 | Q47: =IF(O47>0,Q46+7.48*(4*PI()*(E$16/1440)*Data!N62)*(Data!B62-Data!B61)/LN(0.56146/((Data!P62^2*'C&J'!E$15)/(4*('C&J'!E$16/1440)*O47))),0) -> 0 | R47: 0 | T47: =Data!L62 -> 0 | U47: =Data!M62/Data!N62 ->  | W47: 38 | X47: 31795.08 | Y47: =4*PI()*E$18/LN(0.56146/(Data!V$23^2*'C&J'!E$15/(4*'C&J'!E$18*'C&J'!X47/1440))) -> 3.758231665 | Z47: 31810.08
N48: 40 | O48: =IF(Data!L63>=E$9,Data!L63-E$10,0) -> 0 | P48: =IF(O48>0,P47+7.48*Data!M63*(Data!B63-Data!B62)/1440,0) -> 0 | Q48: =IF(O48>0,Q47+7.48*(4*PI()*(E$16/1440)*Data!N63)*(Data!B63-Data!B62)/LN(0.56146/((Data!P63^2*'C&J'!E$15)/(4*('C&J'!E$16/1440)*O48))),0) -> 0 | R48: 0 | T48: =Data!L63 -> 0 | U48: =Data!M63/Data!N63 ->  | W48: 39 | X48: 32631.74 | Y48: =4*PI()*E$18/LN(0.56146/(Data!V$23^2*'C&J'!E$15/(4*'C&J'!E$18*'C&J'!X48/1440))) -> 3.750009557 | Z48: 32646.74
J49: Height | N49: 41 | O49: =IF(Data!L64>=E$9,Data!L64-E$10,0) -> 0 | P49: =IF(O49>0,P48+7.48*Data!M64*(Data!B64-Data!B63)/1440,0) -> 0 | Q49: =IF(O49>0,Q48+7.48*(4*PI()*(E$16/1440)*Data!N64)*(Data!B64-Data!B63)/LN(0.56146/((Data!P64^2*'C&J'!E$15)/(4*('C&J'!E$16/1440)*O49))),0) -> 0 | R49: 0 | T49: =Data!L64 -> 0 | U49: =Data!M64/Data!N64 ->  | W49: 40 | X49: 33468.4 | Y49: =4*PI()*E$18/LN(0.56146/(Data!V$23^2*'C&J'!E$15/(4*'C&J'!E$18*'C&J'!X49/1440))) -> 3.742030161 | Z49: 33483.4
J50: 70 | N50: 42 | O50: =IF(Data!L65>=E$9,Data!L65-E$10,0) -> 0 | P50: =IF(O50>0,P49+7.48*Data!M65*(Data!B65-Data!B64)/1440,0) -> 0 | Q50: =IF(O50>0,Q49+7.48*(4*PI()*(E$16/1440)*Data!N65)*(Data!B65-Data!B64)/LN(0.56146/((Data!P65^2*'C&J'!E$15)/(4*('C&J'!E$16/1440)*O50))),0) -> 0 | R50: 0 | T50: =Data!L65 -> 0 | U50: =Data!M65/Data!N65 ->  | W50: 41 | X50: 34305.06 | Y50: =4*PI()*E$18/LN(0.56146/(Data!V$23^2*'C&J'!E$15/(4*'C&J'!E$18*'C&J'!X50/1440))) -> 3.734280438 | Z50: 34320.06
N51: 43 | O51: =IF(Data!L66>=E$9,Data!L66-E$10,0) -> 0 | P51: =IF(O51>0,P50+7.48*Data!M66*(Data!B66-Data!B65)/1440,0) -> 0 | Q51: =IF(O51>0,Q50+7.48*(4*PI()*(E$16/1440)*Data!N66)*(Data!B66-Data!B65)/LN(0.56146/((Data!P66^2*'C&J'!E$15)/(4*('C&J'!E$16/1440)*O51))),0) -> 0 | R51: 0 | T51: =Data!L66 -> 0 | U51: =Data!M66/Data!N66 ->  | W51: 42 | X51: 35141.72 | Y51: =4*PI()*E$18/LN(0.56146/(Data!V$23^2*'C&J'!E$15/(4*'C&J'!E$18*'C&J'!X51/1440))) -> 3.726748349 | Z51: 35156.72
N52: 44 | O52: =IF(Data!L67>=E$9,Data!L67-E$10,0) -> 0 | P52: =IF(O52>0,P51+7.48*Data!M67*(Data!B67-Data!B66)/1440,0) -> 0 | Q52: =IF(O52>0,Q51+7.48*(4*PI()*(E$16/1440)*Data!N67)*(Data!B67-Data!B66)/LN(0.56146/((Data!P67^2*'C&J'!E$15)/(4*('C&J'!E$16/1440)*O52))),0) -> 0 | R52: 0 | T52: =Data!L67 -> 0 | U52: =Data!M67/Data!N67 ->  | W52: 43 | X52: 35978.38 | Y52: =4*PI()*E$18/LN(0.56146/(Data!V$23^2*'C&J'!E$15/(4*'C&J'!E$18*'C&J'!X52/1440))) -> 3.719422755 | Z52: 35993.38
N53: 45 | O53: =IF(Data!L68>=E$9,Data!L68-E$10,0) -> 0 | P53: =IF(O53>0,P52+7.48*Data!M68*(Data!B68-Data!B67)/1440,0) -> 0 | Q53: =IF(O53>0,Q52+7.48*(4*PI()*(E$16/1440)*Data!N68)*(Data!B68-Data!B67)/LN(0.56146/((Data!P68^2*'C&J'!E$15)/(4*('C&J'!E$16/1440)*O53))),0) -> 0 | R53: 0 | T53: =Data!L68 -> 0 | U53: =Data!M68/Data!N68 ->  | W53: 44 | X53: 36815.04 | Y53: =4*PI()*E$18/LN(0.56146/(Data!V$23^2*'C&J'!E$15/(4*'C&J'!E$18*'C&J'!X53/1440))) -> 3.712293332 | Z53: 36830.04
N54: 46 | O54: =IF(Data!L69>=E$9,Data!L69-E$10,0) -> 0 | P54: =IF(O54>0,P53+7.48*Data!M69*(Data!B69-Data!B68)/1440,0) -> 0 | Q54: =IF(O54>0,Q53+7.48*(4*PI()*(E$16/1440)*Data!N69)*(Data!B69-Data!B68)/LN(0.56146/((Data!P69^2*'C&J'!E$15)/(4*('C&J'!E$16/1440)*O54))),0) -> 0 | R54: 0 | T54: =Data!L69 -> 0 | U54: =Data!M69/Data!N69 ->  | W54: 45 | X54: 37651.7 | Y54: =4*PI()*E$18/LN(0.56146/(Data!V$23^2*'C&J'!E$15/(4*'C&J'!E$18*'C&J'!X54/1440))) -> 3.705350493 | Z54: 37666.7
N55: 47 | O55: =IF(Data!L70>=E$9,Data!L70-E$10,0) -> 0 | P55: =IF(O55>0,P54+7.48*Data!M70*(Data!B70-Data!B69)/1440,0) -> 0 | Q55: =IF(O55>0,Q54+7.48*(4*PI()*(E$16/1440)*Data!N70)*(Data!B70-Data!B69)/LN(0.56146/((Data!P70^2*'C&J'!E$15)/(4*('C&J'!E$16/1440)*O55))),0) -> 0 | R55: 0 | T55: =Data!L70 -> 0 | U55: =Data!M70/Data!N70 ->  | W55: 46 | X55: 38488.36 | Y55: =4*PI()*E$18/LN(0.56146/(Data!V$23^2*'C&J'!E$15/(4*'C&J'!E$18*'C&J'!X55/1440))) -> 3.698585323 | Z55: 38503.36
N56: 48 | O56: =IF(Data!L71>=E$9,Data!L71-E$10,0) -> 0 | P56: =IF(O56>0,P55+7.48*Data!M71*(Data!B71-Data!B70)/1440,0) -> 0 | Q56: =IF(O56>0,Q55+7.48*(4*PI()*(E$16/1440)*Data!N71)*(Data!B71-Data!B70)/LN(0.56146/((Data!P71^2*'C&J'!E$15)/(4*('C&J'!E$16/1440)*O56))),0) -> 0 | R56: 0 | T56: =Data!L71 -> 0 | U56: =Data!M71/Data!N71 ->  | W56: 47 | X56: 39325.02 | Y56: =4*PI()*E$18/LN(0.56146/(Data!V$23^2*'C&J'!E$15/(4*'C&J'!E$18*'C&J'!X56/1440))) -> 3.691989513 | Z56: 39340.02
N57: 49 | O57: =IF(Data!L72>=E$9,Data!L72-E$10,0) -> 0 | P57: =IF(O57>0,P56+7.48*Data!M72*(Data!B72-Data!B71)/1440,0) -> 0 | Q57: =IF(O57>0,Q56+7.48*(4*PI()*(E$16/1440)*Data!N72)*(Data!B72-Data!B71)/LN(0.56146/((Data!P72^2*'C&J'!E$15)/(4*('C&J'!E$16/1440)*O57))),0) -> 0 | R57: 0 | T57: =Data!L72 -> 0 | U57: =Data!M72/Data!N72 ->  | W57: 48 | X57: 40161.68 | Y57: =4*PI()*E$18/LN(0.56146/(Data!V$23^2*'C&J'!E$15/(4*'C&J'!E$18*'C&J'!X57/1440))) -> 3.685555313 | Z57: 40176.68
N58: 50 | O58: =IF(Data!L73>=E$9,Data!L73-E$10,0) -> 0 | P58: =IF(O58>0,P57+7.48*Data!M73*(Data!B73-Data!B72)/1440,0) -> 0 | Q58: =IF(O58>0,Q57+7.48*(4*PI()*(E$16/1440)*Data!N73)*(Data!B73-Data!B72)/LN(0.56146/((Data!P73^2*'C&J'!E$15)/(4*('C&J'!E$16/1440)*O58))),0) -> 0 | R58: 0 | T58: =Data!L73 -> 0 | U58: =Data!M73/Data!N73 ->  | W58: 49 | X58: 40998.34 | Y58: =4*PI()*E$18/LN(0.56146/(Data!V$23^2*'C&J'!E$15/(4*'C&J'!E$18*'C&J'!X58/1440))) -> 3.679275481 | Z58: 41013.34
T59: =Data!L74 -> 0 | U59: =Data!M74/Data!N74 ->  | W59: 50 | X59: 41835 | Y59: =4*PI()*E$18/LN(0.56146/(Data!V$23^2*'C&J'!E$15/(4*'C&J'!E$18*'C&J'!X59/1440))) -> 3.673143239 | Z59: 41850
T60: =Data!L75 -> 0 | U60: =Data!M75/Data!N75 -> 
T61: =Data!L76 -> 0 | U61: =Data!M76/Data!N76 -> 
T62: =Data!L77 -> 0 | U62: =Data!M77/Data!N77 -> 
T63: =Data!L78 -> 0 | U63: =Data!M78/Data!N78 -> 
T64: =Data!L79 -> 0 | U64: =Data!M79/Data!N79 -> 
T65: =Data!L80 -> 0 | U65: =Data!M80/Data!N80 -> 
T66: =Data!L81 -> 0 | U66: =Data!M81/Data!N81 -> 

Sheet CB&P
A1: Cooper, Bredehoeft and Papadopulos (1967)
A2: Well Designation: | C2: =IF(Data!B1 > 0,Data!B1,"") -> YYY | P2: e | Q2: 1e-06
A3: Date: | C3: =IF(Data!B2 > 0,Data!B2,"") -> date
B5: Enter early time cut-off for least-squares model fit
C6: Timecut (min): | E6: 25 | F6: <- Enter or change values here | N6: Count | O6: Time | P6: H/Ho | Q6: G (a,b,e) | R6: SE | X6: Time | Y6: H/Ho
B7: Initial Drawdown sn (ft): | E7: 0.25 | O7: (min) | T7: Index | U7: Time (min) | V7: G( ) | X7: (min)
N8: =IF(O8>0,1,0) -> 0 | O8: =IF(Data!B23>E$6,Data!B23-E$6,0) -> 0 | P8: =IF(N8>0,Data!J23/'CB&P'!E$7,0) -> 0 | Q8: =IF(N8>0,G(E$14,((-J$20)*'CB&P'!E$13/1440)*'CB&P'!O8/Data!V$23^2,'CB&P'!Q$2),0) -> 0 | R8: =N8*(P8-Q8)^2 -> 0 | T8: 0 | U8: =EXP(LN(J$15)+(LN(J$16)-LN(J$15))*T8/100) -> 3 | V8: =G('CB&P'!E$14,((-J$20)*'CB&P'!E$13/1440)*'CB&P'!U8/Data!V$23^2,0.00001) -> 0.6538475791 | X8: =IF(N8>0,O8,NA()) ->  | Y8: =IF(N8>0,P8,NA()) -> 
B9: Trial Sn: | E9: d | F9: <-- Enter d for default | N9: =IF(O9>0,1,0) -> 0 | O9: =IF(Data!B24>E$6,Data!B24-E$6,0) -> 0 | P9: =IF(N9>0,Data!J24/'CB&P'!E$7,0) -> 0 | Q9: =IF(N9>0,G(E$14,((-J$20)*'CB&P'!E$13/1440)*'CB&P'!O9/Data!V$23^2,'CB&P'!Q$2),0) -> 0 | R9: =N9*(P9-Q9)^2 -> 0 | T9: 1 | U9: 3.133049962 | V9: =G('CB&P'!E$14,((-J$20)*'CB&P'!E$13/1440)*'CB&P'!U9/Data!V$23^2,0.00001) -> 0.6458082046 | X9: =IF(N9>0,O9,NA()) ->  | Y9: =IF(N9>0,P9,NA()) -> 
N10: 0 | O10: =IF(Data!B25>E$6,Data!B25-E$6,0) -> 0 | P10: =IF(N10>0,Data!J25/'CB&P'!E$7,0) -> 0 | Q10: =IF(N10>0,G(E$14,((-J$20)*'CB&P'!E$13/1440)*'CB&P'!O10/Data!V$23^2,'CB&P'!Q$2),0) -> 0 | R10: 0 | T10: 2 | U10: 3.272000688 | V10: =G('CB&P'!E$14,((-J$20)*'CB&P'!E$13/1440)*'CB&P'!U10/Data!V$23^2,0.00001) -> 0.6376318685
B11: Root-Mean-Square Error: | E11: =SQRT(SUM(R8:R48)) -> 21.48822829 | F11: <-- Minimize this using "Solver" | N11: 0 | O11: =IF(Data!B26>E$6,Data!B26-E$6,0) -> 0 | P11: =IF(N11>0,Data!J26/'CB&P'!E$7,0) -> 0 | Q11: =IF(N11>0,G(E$14,((-J$20)*'CB&P'!E$13/1440)*'CB&P'!O11/Data!V$23^2,'CB&P'!Q$2),0) -> 0 | R11: 0 | T11: 3 | U11: 3.417113877 | V11: =G('CB&P'!E$14,((-J$20)*'CB&P'!E$13/1440)*'CB&P'!U11/Data!V$23^2,0.00001) -> 0.6293197349
N12: 0 | O12: =IF(Data!B27>E$6,Data!B27-E$6,0) -> 0 | P12: =IF(N12>0,Data!J27/'CB&P'!E$7,0) -> 0 | Q12: =IF(N12>0,G(E$14,((-J$20)*'CB&P'!E$13/1440)*'CB&P'!O12/Data!V$23^2,'CB&P'!Q$2),0) -> 0 | R12: 0 | T12: 4 | U12: 3.568662835 | V12: =G('CB&P'!E$14,((-J$20)*'CB&P'!E$13/1440)*'CB&P'!U12/Data!V$23^2,0.00001) -> 0.6208731681
B13: Trial Tn (ft2/d): | E13: 2.642199953 | F13: <-- By changing Tn through "Solver" | N13: 0 | O13: =IF(Data!B28>E$6,Data!B28-E$6,0) -> 0 | P13: =IF(N13>0,Data!J28/'CB&P'!E$7,0) -> 0 | Q13: =IF(N13>0,G(E$14,((-J$20)*'CB&P'!E$13/1440)*'CB&P'!O13/Data!V$23^2,'CB&P'!Q$2),0) -> 0 | R13: 0 | T13: 5 | U13: 3.726932986 | V13: =G('CB&P'!E$14,((-J$20)*'CB&P'!E$13/1440)*'CB&P'!U13/Data!V$23^2,0.00001) -> 0.6122938282
E14: =IF(E9="d",0.025*SQRT(E13),E9) -> 0.04063711322 | F14: <-- Working Sn | H14: Add constraint Tn > 0.00001 | N14: 0 | O14: =IF(Data!B29>E$6,Data!B29-E$6,0) -> 0 | P14: =IF(N14>0,Data!J29/'CB&P'!E$7,0) -> 0 | Q14: =IF(N14>0,G(E$14,((-J$20)*'CB&P'!E$13/1440)*'CB&P'!O14/Data!V$23^2,'CB&P'!Q$2),0) -> 0 | R14: 0 | T14: 6 | U14: 3.892222417 | V14: =G('CB&P'!E$14,((-J$20)*'CB&P'!E$13/1440)*'CB&P'!U14/Data!V$23^2,0.00001) -> 0.6035836576
B15: Model Result: | D15: Tn (ft2/d) = | E15: =E13 -> 2.642199953 | I15: Tmin | J15: 3 | N15: 0 | O15: =IF(Data!B30>E$6,Data!B30-E$6,0) -> 0 | P15: =IF(N15>0,Data!J30/'CB&P'!E$7,0) -> 0 | Q15: =IF(N15>0,G(E$14,((-J$20)*'CB&P'!E$13/1440)*'CB&P'!O15/Data!V$23^2,'CB&P'!Q$2),0) -> 0 | R15: 0 | T15: 7 | U15: 4.064842432 | V15: =G('CB&P'!E$14,((-J$20)*'CB&P'!E$13/1440)*'CB&P'!U15/Data!V$23^2,0.00001) -> 0.5947448926
I16: Tmax | J16: 230 | N16: 0 | O16: =IF(Data!B31>E$6,Data!B31-E$6,0) -> 0 | P16: =IF(N16>0,Data!J31/'CB&P'!E$7,0) -> 0 | Q16: =IF(N16>0,G(E$14,((-J$20)*'CB&P'!E$13/1440)*'CB&P'!O16/Data!V$23^2,'CB&P'!Q$2),0) -> 0 | R16: 0 | T16: 8 | U16: 4.245118142 | V16: =G('CB&P'!E$14,((-J$20)*'CB&P'!E$13/1440)*'CB&P'!U16/Data!V$23^2,0.00001) -> 0.5857800745
N17: 0 | O17: =IF(Data!B32>E$6,Data!B32-E$6,0) -> 0 | P17: =IF(N17>0,Data!J32/'CB&P'!E$7,0) -> 0 | Q17: =IF(N17>0,G(E$14,((-J$20)*'CB&P'!E$13/1440)*'CB&P'!O17/Data!V$23^2,'CB&P'!Q$2),0) -> 0 | R17: 0 | T17: 9 | U17: 4.433389078 | V17: =G('CB&P'!E$14,((-J$20)*'CB&P'!E$13/1440)*'CB&P'!U17/Data!V$23^2,0.00001) -> 0.5766920598
N18: 0 | O18: =IF(Data!B33>E$6,Data!B33-E$6,0) -> 0 | P18: =IF(N18>0,Data!J33/'CB&P'!E$7,0) -> 0 | Q18: =IF(N18>0,G(E$14,((-J$20)*'CB&P'!E$13/1440)*'CB&P'!O18/Data!V$23^2,'CB&P'!Q$2),0) -> 0 | R18: 0 | T18: 10 | U18: 4.630009828 | V18: =G('CB&P'!E$14,((-J$20)*'CB&P'!E$13/1440)*'CB&P'!U18/Data!V$23^2,0.00001) -> 0.5674840309
J19: J-Ratio | N19: 1 | O19: =IF(Data!B34>E$6,Data!B34-E$6,0) -> 1 | P19: =IF(N19>0,Data!J34/'CB&P'!E$7,0) -> 6.12 | Q19: =IF(N19>0,G(E$14,((-J$20)*'CB&P'!E$13/1440)*'CB&P'!O19/Data!V$23^2,'CB&P'!Q$2),0) -> 0.8124576381 | R19: 28.17000592 | T19: 11 | U19: 4.835350705 | V19: =G('CB&P'!E$14,((-J$20)*'CB&P'!E$13/1440)*'CB&P'!U19/Data!V$23^2,0.00001) -> 0.558159505 | X19: 1 | Y19: 6.12
J20: =Figures!U27 -> -1.276595745 | N20: 1 | O20: =IF(Data!B35>E$6,Data!B35-E$6,0) -> 5 | P20: =IF(N20>0,Data!J35/'CB&P'!E$7,0) -> 6.08 | Q20: =IF(N20>0,G(E$14,((-J$20)*'CB&P'!E$13/1440)*'CB&P'!O20/Data!V$23^2,'CB&P'!Q$2),0) -> 0.5508873007 | R20: 30.57108724 | T20: 12 | U20: 5.049798447 | V20: =G('CB&P'!E$14,((-J$20)*'CB&P'!E$13/1440)*'CB&P'!U20/Data!V$23^2,0.00001) -> 0.5487223427 | X20: 5 | Y20: 6.08
N21: 1 | O21: =IF(Data!B36>E$6,Data!B36-E$6,0) -> 15 | P21: =IF(N21>0,Data!J36/'CB&P'!E$7,0) -> 5.92 | Q21: =IF(N21>0,G(E$14,((-J$20)*'CB&P'!E$13/1440)*'CB&P'!O21/Data!V$23^2,'CB&P'!Q$2),0) -> 0.293879042 | R21: 31.65323703 | T21: 13 | U21: 5.273756945 | V21: =G('CB&P'!E$14,((-J$20)*'CB&P'!E$13/1440)*'CB&P'!U21/Data!V$23^2,0.00001) -> 0.5391767562 | X21: 15 | Y21: 5.92
N22: 1 | O22: =IF(Data!B37>E$6,Data!B37-E$6,0) -> 25 | P22: =IF(N22>0,Data!J37/'CB&P'!E$7,0) -> 5.8 | Q22: =IF(N22>0,G(E$14,((-J$20)*'CB&P'!E$13/1440)*'CB&P'!O22/Data!V$23^2,'CB&P'!Q$2),0) -> 0.1867767816 | R22: 31.5082749 | T22: 14 | U22: 5.507647998 | V22: =G('CB&P'!E$14,((-J$20)*'CB&P'!E$13/1440)*'CB&P'!U22/Data!V$23^2,0.00001) -> 0.5295273153 | X22: 25 | Y22: 5.8
N23: 1 | O23: =IF(Data!B38>E$6,Data!B38-E$6,0) -> 35 | P23: =IF(N23>0,Data!J38/'CB&P'!E$7,0) -> 5.68 | Q23: =IF(N23>0,G(E$14,((-J$20)*'CB&P'!E$13/1440)*'CB&P'!O23/Data!V$23^2,'CB&P'!Q$2),0) -> 0.1306725058 | R23: 30.79503564 | T23: 15 | U23: 5.751912118 | V23: =G('CB&P'!E$14,((-J$20)*'CB&P'!E$13/1440)*'CB&P'!U23/Data!V$23^2,0.00001) -> 0.5197789536 | X23: 35 | Y23: 5.68
N24: 1 | O24: =IF(Data!B39>E$6,Data!B39-E$6,0) -> 45 | P24: =IF(N24>0,Data!J39/'CB&P'!E$7,0) -> 5.6 | Q24: =IF(N24>0,G(E$14,((-J$20)*'CB&P'!E$13/1440)*'CB&P'!O24/Data!V$23^2,'CB&P'!Q$2),0) -> 0.09760302324 | R24: 30.27637249 | T24: 16 | U24: 6.007009347 | V24: =G('CB&P'!E$14,((-J$20)*'CB&P'!E$13/1440)*'CB&P'!U24/Data!V$23^2,0.00001) -> 0.5099369724 | X24: 45 | Y24: 5.6
N25: 1 | O25: =IF(Data!B40>E$6,Data!B40-E$6,0) -> 55 | P25: =IF(N25>0,Data!J40/'CB&P'!E$7,0) -> 5.52 | Q25: =IF(N25>0,G(E$14,((-J$20)*'CB&P'!E$13/1440)*'CB&P'!O25/Data!V$23^2,'CB&P'!Q$2),0) -> 0.07648440605 | R25: 29.63186202 | T25: 17 | U25: 6.273420136 | V25: =G('CB&P'!E$14,((-J$20)*'CB&P'!E$13/1440)*'CB&P'!U25/Data!V$23^2,0.00001) -> 0.5000070443 | X25: 55 | Y25: 5.52
N26: 1 | O26: =IF(Data!B41>E$6,Data!B41-E$6,0) -> 65 | P26: =IF(N26>0,Data!J41/'CB&P'!E$7,0) -> 5.48 | Q26: =IF(N26>0,G(E$14,((-J$20)*'CB&P'!E$13/1440)*'CB&P'!O26/Data!V$23^2,'CB&P'!Q$2),0) -> 0.06216080247 | R26: 29.35298157 | T26: 18 | U26: 6.551646239 | V26: =G('CB&P'!E$14,((-J$20)*'CB&P'!E$13/1440)*'CB&P'!U26/Data!V$23^2,0.00001) -> 0.4899952139 | X26: 65 | Y26: 5.48
N27: 1 | O27: =IF(Data!B42>E$6,Data!B42-E$6,0) -> 75 | P27: =IF(N27>0,Data!J42/'CB&P'!E$7,0) -> 5.44 | Q27: =IF(N27>0,G(E$14,((-J$20)*'CB&P'!E$13/1440)*'CB&P'!O27/Data!V$23^2,'CB&P'!Q$2),0) -> 0.05197325178 | R27: =N27*(P27-Q27)^2 -> 29.03083224 | T27: 19 | U27: 6.842211667 | V27: =G('CB&P'!E$14,((-J$20)*'CB&P'!E$13/1440)*'CB&P'!U27/Data!V$23^2,0.00001) -> 0.479907898 | X27: 75 | Y27: 5.44
N28: 1 | O28: =IF(Data!B43>E$6,Data!B43-E$6,0) -> 975 | P28: =IF(N28>0,Data!J43/'CB&P'!E$7,0) -> 5.48 | Q28: =IF(N28>0,G(E$14,((-J$20)*'CB&P'!E$13/1440)*'CB&P'!O28/Data!V$23^2,'CB&P'!Q$2),0) -> 0.002870157058 | R28: =N28*(P28-Q28)^2 -> 29.99895132 | T28: 20 | U28: 7.145663668 | V28: =G('CB&P'!E$14,((-J$20)*'CB&P'!E$13/1440)*'CB&P'!U28/Data!V$23^2,0.00001) -> 0.4697518837 | X28: 975 | Y28: 5.48
N29: 1 | O29: =IF(Data!B44>E$6,Data!B44-E$6,0) -> 2425 | P29: =IF(N29>0,Data!J44/'CB&P'!E$7,0) -> 5.92 | Q29: =IF(N29>0,G(E$14,((-J$20)*'CB&P'!E$13/1440)*'CB&P'!O29/Data!V$23^2,'CB&P'!Q$2),0) -> 0.001128155724 | R29: 35.03304391 | T29: 21 | U29: 7.462573761 | V29: =G('CB&P'!E$14,((-J$20)*'CB&P'!E$13/1440)*'CB&P'!U29/Data!V$23^2,0.00001) -> 0.4595343242 | X29: 2425 | Y29: 5.92
N30: 1 | O30: =IF(Data!B45>E$6,Data!B45-E$6,0) -> 3875 | P30: =IF(N30>0,Data!J45/'CB&P'!E$7,0) -> 6 | Q30: =IF(N30>0,G(E$14,((-J$20)*'CB&P'!E$13/1440)*'CB&P'!O30/Data!V$23^2,'CB&P'!Q$2),0) -> 0.0007016527007 | R30: 35.99158066 | T30: 22 | U30: 7.793538813 | V30: =G('CB&P'!E$14,((-J$20)*'CB&P'!E$13/1440)*'CB&P'!U30/Data!V$23^2,0.00001) -> 0.4492627332 | X30: 3875 | Y30: 6
N31: 1 | O31: =IF(Data!B46>E$6,Data!B46-E$6,0) -> 5325 | P31: =IF(N31>0,Data!J46/'CB&P'!E$7,0) -> 5.24 | Q31: =IF(N31>0,G(E$14,((-J$20)*'CB&P'!E$13/1440)*'CB&P'!O31/Data!V$23^2,'CB&P'!Q$2),0) -> 0.0005090895589 | R31: 27.452265 | T31: 23 | U31: 8.139182161 | V31: =G('CB&P'!E$14,((-J$20)*'CB&P'!E$13/1440)*'CB&P'!U31/Data!V$23^2,0.00001) -> 0.4389449762 | X31: 5325 | Y31: 5.24
N32: 1 | O32: =IF(Data!B47>E$6,Data!B47-E$6,0) -> 29215 | P32: =IF(N32>0,Data!J47/'CB&P'!E$7,0) -> 5.52 | Q32: =IF(N32>0,G(E$14,((-J$20)*'CB&P'!E$13/1440)*'CB&P'!O32/Data!V$23^2,'CB&P'!Q$2),0) -> 9.214207193e-05 | R32: 30.46938276 | T32: 24 | U32: 8.500154787 | V32: =G('CB&P'!E$14,((-J$20)*'CB&P'!E$13/1440)*'CB&P'!U32/Data!V$23^2,0.00001) -> 0.4285892609 | X32: 29215 | Y32: 5.52
N33: 1 | O33: =IF(Data!B48>E$6,Data!B48-E$6,0) -> 54385 | P33: =IF(N33>0,Data!J48/'CB&P'!E$7,0) -> 5.64 | Q33: =IF(N33>0,G(E$14,((-J$20)*'CB&P'!E$13/1440)*'CB&P'!O33/Data!V$23^2,'CB&P'!Q$2),0) -> 4.945652953e-05 | R33: 31.80904213 | T33: 25 | U33: 8.877136544 | V33: =G('CB&P'!E$14,((-J$20)*'CB&P'!E$13/1440)*'CB&P'!U33/Data!V$23^2,0.00001) -> 0.4182041238 | X33: 54385 | Y33: 5.64
N34: 0 | O34: =IF(Data!B49>E$6,Data!B49-E$6,0) -> 0 | P34: =IF(N34>0,Data!J49/'CB&P'!E$7,0) -> 0 | Q34: =IF(N34>0,G(E$14,((-J$20)*'CB&P'!E$13/1440)*'CB&P'!O34/Data!V$23^2,'CB&P'!Q$2),0) -> 0 | R34: 0 | T34: 26 | U34: 9.270837437 | V34: =G('CB&P'!E$14,((-J$20)*'CB&P'!E$13/1440)*'CB&P'!U34/Data!V$23^2,0.00001) -> 0.4077984151
N35: 0 | O35: =IF(Data!B50>E$6,Data!B50-E$6,0) -> 0 | P35: =IF(N35>0,Data!J50/'CB&P'!E$7,0) -> 0 | Q35: =IF(N35>0,G(E$14,((-J$20)*'CB&P'!E$13/1440)*'CB&P'!O35/Data!V$23^2,'CB&P'!Q$2),0) -> 0 | R35: 0 | T35: 27 | U35: 9.68199896 | V35: =G('CB&P'!E$14,((-J$20)*'CB&P'!E$13/1440)*'CB&P'!U35/Data!V$23^2,0.00001) -> 0.3973812811
N36: 0 | O36: =IF(Data!B51>E$6,Data!B51-E$6,0) -> 0 | P36: =IF(N36>0,Data!J51/'CB&P'!E$7,0) -> 0 | Q36: =IF(N36>0,G(E$14,((-J$20)*'CB&P'!E$13/1440)*'CB&P'!O36/Data!V$23^2,'CB&P'!Q$2),0) -> 0 | R36: 0 | T36: 28 | U36: 10.11139549 | V36: =G('CB&P'!E$14,((-J$20)*'CB&P'!E$13/1440)*'CB&P'!U36/Data!V$23^2,0.00001) -> 0.3869621434
N37: 0 | O37: =IF(Data!B52>E$6,Data!B52-E$6,0) -> 0 | P37: =IF(N37>0,Data!J52/'CB&P'!E$7,0) -> 0 | Q37: =IF(N37>0,G(E$14,((-J$20)*'CB&P'!E$13/1440)*'CB&P'!O37/Data!V$23^2,'CB&P'!Q$2),0) -> 0 | R37: 0 | T37: 29 | U37: 10.55983575 | V37: =G('CB&P'!E$14,((-J$20)*'CB&P'!E$13/1440)*'CB&P'!U37/Data!V$23^2,0.00001) -> 0.3765506761
N38: 0 | O38: =IF(Data!B53>E$6,Data!B53-E$6,0) -> 0 | P38: =IF(N38>0,Data!J53/'CB&P'!E$7,0) -> 0 | Q38: =IF(N38>0,G(E$14,((-J$20)*'CB&P'!E$13/1440)*'CB&P'!O38/Data!V$23^2,'CB&P'!Q$2),0) -> 0 | R38: 0 | T38: 30 | U38: 11.02816434 | V38: =G('CB&P'!E$14,((-J$20)*'CB&P'!E$13/1440)*'CB&P'!U38/Data!V$23^2,0.00001) -> 0.36615678
N39: 0 | O39: =IF(Data!B54>E$6,Data!B54-E$6,0) -> 0 | P39: =IF(N39>0,Data!J54/'CB&P'!E$7,0) -> 0 | Q39: =IF(N39>0,G(E$14,((-J$20)*'CB&P'!E$13/1440)*'CB&P'!O39/Data!V$23^2,'CB&P'!Q$2),0) -> 0 | R39: 0 | T39: 31 | U39: 11.51726328 | V39: =G('CB&P'!E$14,((-J$20)*'CB&P'!E$13/1440)*'CB&P'!U39/Data!V$23^2,0.00001) -> 0.3557905542
N40: 0 | O40: =IF(Data!B55>E$6,Data!B55-E$6,0) -> 0 | P40: =IF(N40>0,Data!J55/'CB&P'!E$7,0) -> 0 | Q40: =IF(N40>0,G(E$14,((-J$20)*'CB&P'!E$13/1440)*'CB&P'!O40/Data!V$23^2,'CB&P'!Q$2),0) -> 0 | R40: 0 | T40: 32 | U40: =EXP(LN(J$15)+(LN(J$16)-LN(J$15))*T40/100) -> 12.02805377 | V40: =G('CB&P'!E$14,((-J$20)*'CB&P'!E$13/1440)*'CB&P'!U40/Data!V$23^2,0.00001) -> 0.3454622648
N41: 0 | O41: =IF(Data!B56>E$6,Data!B56-E$6,0) -> 0 | P41: =IF(N41>0,Data!J56/'CB&P'!E$7,0) -> 0 | Q41: =IF(N41>0,G(E$14,((-J$20)*'CB&P'!E$13/1440)*'CB&P'!O41/Data!V$23^2,'CB&P'!Q$2),0) -> 0 | R41: 0 | T41: 33 | U41: 12.5614978 | V41: =G('CB&P'!E$14,((-J$20)*'CB&P'!E$13/1440)*'CB&P'!U41/Data!V$23^2,0.00001) -> 0.3351823119
N42: 0 | O42: =IF(Data!B57>E$6,Data!B57-E$6,0) -> 0 | P42: =IF(N42>0,Data!J57/'CB&P'!E$7,0) -> 0 | Q42: =IF(N42>0,G(E$14,((-J$20)*'CB&P'!E$13/1440)*'CB&P'!O42/Data!V$23^2,'CB&P'!Q$2),0) -> 0 | R42: 0 | T42: 34 | U42: 13.11860007 | V42: =G('CB&P'!E$14,((-J$20)*'CB&P'!E$13/1440)*'CB&P'!U42/Data!V$23^2,0.00001) -> 0.3249611928
N43: 0 | O43: =IF(Data!B58>E$6,Data!B58-E$6,0) -> 0 | P43: =IF(N43>0,Data!J58/'CB&P'!E$7,0) -> 0 | Q43: =IF(N43>0,G(E$14,((-J$20)*'CB&P'!E$13/1440)*'CB&P'!O43/Data!V$23^2,'CB&P'!Q$2),0) -> 0 | R43: 0 | T43: 35 | U43: 13.70040981 | V43: =G('CB&P'!E$14,((-J$20)*'CB&P'!E$13/1440)*'CB&P'!U43/Data!V$23^2,0.00001) -> 0.3148094641
N44: 0 | O44: =IF(Data!B59>E$6,Data!B59-E$6,0) -> 0 | P44: =IF(N44>0,Data!J59/'CB&P'!E$7,0) -> 0 | Q44: =IF(N44>0,G(E$14,((-J$20)*'CB&P'!E$13/1440)*'CB&P'!O44/Data!V$23^2,'CB&P'!Q$2),0) -> 0 | R44: 0 | T44: 36 | U44: 14.30802282 | V44: =G('CB&P'!E$14,((-J$20)*'CB&P'!E$13/1440)*'CB&P'!U44/Data!V$23^2,0.00001) -> 0.3047377012
N45: 0 | O45: =IF(Data!B60>E$6,Data!B60-E$6,0) -> 0 | P45: =IF(N45>0,Data!J60/'CB&P'!E$7,0) -> 0 | Q45: =IF(N45>0,G(E$14,((-J$20)*'CB&P'!E$13/1440)*'CB&P'!O45/Data!V$23^2,'CB&P'!Q$2),0) -> 0 | R45: 0 | T45: 37 | U45: 14.94258345 | V45: =G('CB&P'!E$14,((-J$20)*'CB&P'!E$13/1440)*'CB&P'!U45/Data!V$23^2,0.00001) -> 0.2947564493
N46: 0 | O46: =IF(Data!B61>E$6,Data!B61-E$6,0) -> 0 | P46: =IF(N46>0,Data!J61/'CB&P'!E$7,0) -> 0 | Q46: =IF(N46>0,G(E$14,((-J$20)*'CB&P'!E$13/1440)*'CB&P'!O46/Data!V$23^2,'CB&P'!Q$2),0) -> 0 | R46: 0 | T46: 38 | U46: 15.60528683 | V46: =G('CB&P'!E$14,((-J$20)*'CB&P'!E$13/1440)*'CB&P'!U46/Data!V$23^2,0.00001) -> 0.284876206
N47: 0 | O47: =IF(Data!B62>E$6,Data!B62-E$6,0) -> 0 | P47: =IF(N47>0,Data!J62/'CB&P'!E$7,0) -> 0 | Q47: =IF(N47>0,G(E$14,((-J$20)*'CB&P'!E$13/1440)*'CB&P'!O47/Data!V$23^2,'CB&P'!Q$2),0) -> 0 | R47: 0 | T47: 39 | U47: 16.29738111 | V47: =G('CB&P'!E$14,((-J$20)*'CB&P'!E$13/1440)*'CB&P'!U47/Data!V$23^2,0.00001) -> 0.2751073306
N48: 0 | O48: =IF(Data!B63>E$6,Data!B63-E$6,0) -> 0 | P48: =IF(N48>0,Data!J63/'CB&P'!E$7,0) -> 0 | Q48: =IF(N48>0,G(E$14,((-J$20)*'CB&P'!E$13/1440)*'CB&P'!O48/Data!V$23^2,'CB&P'!Q$2),0) -> 0 | R48: 0 | T48: 40 | U48: 17.02016975 | V48: =G('CB&P'!E$14,((-J$20)*'CB&P'!E$13/1440)*'CB&P'!U48/Data!V$23^2,0.00001) -> 0.265460032
T49: 41 | U49: 17.77501407 | V49: =G('CB&P'!E$14,((-J$20)*'CB&P'!E$13/1440)*'CB&P'!U49/Data!V$23^2,0.00001) -> 0.2559443105
T50: 42 | U50: 18.56333571 | V50: =G('CB&P'!E$14,((-J$20)*'CB&P'!E$13/1440)*'CB&P'!U50/Data!V$23^2,0.00001) -> 0.2465699096
T51: 43 | U51: 19.38661942 | V51: =G('CB&P'!E$14,((-J$20)*'CB&P'!E$13/1440)*'CB&P'!U51/Data!V$23^2,0.00001) -> 0.2373462683
T52: 44 | U52: 20.24641574 | V52: =G('CB&P'!E$14,((-J$20)*'CB&P'!E$13/1440)*'CB&P'!U52/Data!V$23^2,0.00001) -> 0.2282824734
T53: 45 | U53: 21.14434403 | V53: =G('CB&P'!E$14,((-J$20)*'CB&P'!E$13/1440)*'CB&P'!U53/Data!V$23^2,0.00001) -> 0.2193872127
T54: 46 | U54: 22.08209542 | V54: =G('CB&P'!E$14,((-J$20)*'CB&P'!E$13/1440)*'CB&P'!U54/Data!V$23^2,0.00001) -> 0.2106687297
T55: 47 | U55: 23.06143607 | V55: =G('CB&P'!E$14,((-J$20)*'CB&P'!E$13/1440)*'CB&P'!U55/Data!V$23^2,0.00001) -> 0.2021347803
T56: 48 | U56: 24.08421047 | V56: =G('CB&P'!E$14,((-J$20)*'CB&P'!E$13/1440)*'CB&P'!U56/Data!V$23^2,0.00001) -> 0.1937925912
T57: 49 | U57: 25.1523449 | V57: =G('CB&P'!E$14,((-J$20)*'CB&P'!E$13/1440)*'CB&P'!U57/Data!V$23^2,0.00001) -> 0.1856488223
T58: 50 | U58: 26.26785107 | V58: =G('CB&P'!E$14,((-J$20)*'CB&P'!E$13/1440)*'CB&P'!U58/Data!V$23^2,0.00001) -> 0.1777095308
T59: 51 | U59: 27.43282994 | V59: =G('CB&P'!E$14,((-J$20)*'CB&P'!E$13/1440)*'CB&P'!U59/Data!V$23^2,0.00001) -> 0.169980141
T60: 52 | U60: 28.6494756 | V60: =G('CB&P'!E$14,((-J$20)*'CB&P'!E$13/1440)*'CB&P'!U60/Data!V$23^2,0.00001) -> 0.1624654166
T61: 53 | U61: 29.92007948 | V61: =G('CB&P'!E$14,((-J$20)*'CB&P'!E$13/1440)*'CB&P'!U61/Data!V$23^2,0.00001) -> 0.1551694383
T62: 54 | U62: 31.24703462 | V62: =G('CB&P'!E$14,((-J$20)*'CB&P'!E$13/1440)*'CB&P'!U62/Data!V$23^2,0.00001) -> 0.1480955867
T63: 55 | U63: 32.63284021 | V63: =G('CB&P'!E$14,((-J$20)*'CB&P'!E$13/1440)*'CB&P'!U63/Data!V$23^2,0.00001) -> 0.1412465297
T64: 56 | U64: 34.08010626 | V64: =G('CB&P'!E$14,((-J$20)*'CB&P'!E$13/1440)*'CB&P'!U64/Data!V$23^2,0.00001) -> 0.1346242157
T65: 57 | U65: 35.59155854 | V65: =G('CB&P'!E$14,((-J$20)*'CB&P'!E$13/1440)*'CB&P'!U65/Data!V$23^2,0.00001) -> 0.1282297953
T66: 58 | U66: 37.17004372 | V66: =G('CB&P'!E$14,((-J$20)*'CB&P'!E$13/1440)*'CB&P'!U66/Data!V$23^2,0.00001) -> 0.1220639468
T67: 59 | U67: 38.81853468 | V67: =G('CB&P'!E$14,((-J$20)*'CB&P'!E$13/1440)*'CB&P'!U67/Data!V$23^2,0.00001) -> 0.1161263861
T68: 60 | U68: 40.54013621 | V68: =G('CB&P'!E$14,((-J$20)*'CB&P'!E$13/1440)*'CB&P'!U68/Data!V$23^2,0.00001) -> 0.1104162279
T69: 61 | U69: 42.33809073 | V69: =G('CB&P'!E$14,((-J$20)*'CB&P'!E$13/1440)*'CB&P'!U69/Data!V$23^2,0.00001) -> 0.1049319173
T70: 62 | U70: 44.21578452 | V70: =G('CB&P'!E$14,((-J$20)*'CB&P'!E$13/1440)*'CB&P'!U70/Data!V$23^2,0.00001) -> 0.09967125619
T71: 63 | U71: 46.17675401 | V71: =G('CB&P'!E$14,((-J$20)*'CB&P'!E$13/1440)*'CB&P'!U71/Data!V$23^2,0.00001) -> 0.09463143428
T72: 64 | U72: =EXP(LN(J$15)+(LN(J$16)-LN(J$15))*T72/100) -> 48.22469246 | V72: =G('CB&P'!E$14,((-J$20)*'CB&P'!E$13/1440)*'CB&P'!U72/Data!V$23^2,0.00001) -> 0.08980904069
T73: 65 | U73: 50.36345696 | V73: =G('CB&P'!E$14,((-J$20)*'CB&P'!E$13/1440)*'CB&P'!U73/Data!V$23^2,0.00001) -> 0.08520018197
T74: 66 | U74: 52.59707564 | V74: =G('CB&P'!E$14,((-J$20)*'CB&P'!E$13/1440)*'CB&P'!U74/Data!V$23^2,0.00001) -> 0.08080043211
T75: 67 | U75: 54.92975528 | V75: =G('CB&P'!E$14,((-J$20)*'CB&P'!E$13/1440)*'CB&P'!U75/Data!V$23^2,0.00001) -> 0.07660492399
T76: 68 | U76: 57.36588923 | V76: =G('CB&P'!E$14,((-J$20)*'CB&P'!E$13/1440)*'CB&P'!U76/Data!V$23^2,0.00001) -> 0.07260838983
T77: 69 | U77: 59.91006569 | V77: =G('CB&P'!E$14,((-J$20)*'CB&P'!E$13/1440)*'CB&P'!U77/Data!V$23^2,0.00001) -> 0.06880521064
T78: 70 | U78: 62.56707635 | V78: =G('CB&P'!E$14,((-J$20)*'CB&P'!E$13/1440)*'CB&P'!U78/Data!V$23^2,0.00001) -> 0.06518946668
T79: 71 | U79: 65.34192539 | V79: =G('CB&P'!E$14,((-J$20)*'CB&P'!E$13/1440)*'CB&P'!U79/Data!V$23^2,0.00001) -> 0.06175498804
T80: 72 | U80: 68.23983896 | V80: =G('CB&P'!E$14,((-J$20)*'CB&P'!E$13/1440)*'CB&P'!U80/Data!V$23^2,0.00001) -> 0.05849540245
T81: 73 | U81: 71.26627495 | V81: =G('CB&P'!E$14,((-J$20)*'CB&P'!E$13/1440)*'CB&P'!U81/Data!V$23^2,0.00001) -> 0.05540419587
T82: 74 | U82: 74.42693335 | V82: =G('CB&P'!E$14,((-J$20)*'CB&P'!E$13/1440)*'CB&P'!U82/Data!V$23^2,0.00001) -> 0.05247474051
T83: 75 | U83: 77.7277669 | V83: =G('CB&P'!E$14,((-J$20)*'CB&P'!E$13/1440)*'CB&P'!U83/Data!V$23^2,0.00001) -> 0.04970035599
T84: 76 | U84: 81.17499238 | V84: =G('CB&P'!E$14,((-J$20)*'CB&P'!E$13/1440)*'CB&P'!U84/Data!V$23^2,0.00001) -> 0.04707434742
T85: 77 | U85: 84.77510226 | V85: =G('CB&P'!E$14,((-J$20)*'CB&P'!E$13/1440)*'CB&P'!U85/Data!V$23^2,0.00001) -> 0.04459004556
T86: 78 | U86: 88.53487697 | V86: =G('CB&P'!E$14,((-J$20)*'CB&P'!E$13/1440)*'CB&P'!U86/Data!V$23^2,0.00001) -> 0.04224084364
T87: 79 | U87: 92.46139765 | V87: =G('CB&P'!E$14,((-J$20)*'CB&P'!E$13/1440)*'CB&P'!U87/Data!V$23^2,0.00001) -> 0.04002023071
T88: 80 | U88: 96.56205946 | V88: =G('CB&P'!E$14,((-J$20)*'CB&P'!E$13/1440)*'CB&P'!U88/Data!V$23^2,0.00001) -> 0.0379217991
T89: 81 | U89: 100.8445856 | V89: =G('CB&P'!E$14,((-J$20)*'CB&P'!E$13/1440)*'CB&P'!U89/Data!V$23^2,0.00001) -> 0.03593935683
T90: 82 | U90: 105.3170417 | V90: =G('CB&P'!E$14,((-J$20)*'CB&P'!E$13/1440)*'CB&P'!U90/Data!V$23^2,0.00001) -> 0.03406682316
T91: 83 | U91: 109.9878511 | V91: =G('CB&P'!E$14,((-J$20)*'CB&P'!E$13/1440)*'CB&P'!U91/Data!V$23^2,0.00001) -> 0.03229832935
T92: 84 | U92: 114.8658109 | V92: =G('CB&P'!E$14,((-J$20)*'CB&P'!E$13/1440)*'CB&P'!U92/Data!V$23^2,0.00001) -> 0.03062821345
T93: 85 | U93: 119.9601082 | V93: =G('CB&P'!E$14,((-J$20)*'CB&P'!E$13/1440)*'CB&P'!U93/Data!V$23^2,0.00001) -> 0.02905103166
T94: 86 | U94: 125.2803375 | V94: =G('CB&P'!E$14,((-J$20)*'CB&P'!E$13/1440)*'CB&P'!U94/Data!V$23^2,0.00001) -> 0.02756156663
T95: 87 | U95: 130.8365189 | V95: =G('CB&P'!E$14,((-J$20)*'CB&P'!E$13/1440)*'CB&P'!U95/Data!V$23^2,0.00001) -> 0.02615483263
T96: 88 | U96: 136.6391168 | V96: =G('CB&P'!E$14,((-J$20)*'CB&P'!E$13/1440)*'CB&P'!U96/Data!V$23^2,0.00001) -> 0.02482607819
T97: 89 | U97: 142.6990599 | V97: =G('CB&P'!E$14,((-J$20)*'CB&P'!E$13/1440)*'CB&P'!U97/Data!V$23^2,0.00001) -> 0.02357078624
T98: 90 | U98: 149.0277614 | V98: =G('CB&P'!E$14,((-J$20)*'CB&P'!E$13/1440)*'CB&P'!U98/Data!V$23^2,0.00001) -> 0.0223846722
T99: 91 | U99: 155.6371408 | V99: =G('CB&P'!E$14,((-J$20)*'CB&P'!E$13/1440)*'CB&P'!U99/Data!V$23^2,0.00001) -> 0.02126368024
T100: 92 | U100: 162.539646 | V100: =G('CB&P'!E$14,((-J$20)*'CB&P'!E$13/1440)*'CB&P'!U100/Data!V$23^2,0.00001) -> 0.02020397802
T101: 93 | U101: 169.7482772 | V101: =G('CB&P'!E$14,((-J$20)*'CB&P'!E$13/1440)*'CB&P'!U101/Data!V$23^2,0.00001) -> 0.01920195022
T102: 94 | U102: 177.2766112 | V102: =G('CB&P'!E$14,((-J$20)*'CB&P'!E$13/1440)*'CB&P'!U102/Data!V$23^2,0.00001) -> 0.01825419106
T103: 95 | U103: 185.1388266 | V103: =G('CB&P'!E$14,((-J$20)*'CB&P'!E$13/1440)*'CB&P'!U103/Data!V$23^2,0.00001) -> 0.01735749604
T104: 96 | U104: =EXP(LN(J$15)+(LN(J$16)-LN(J$15))*T104/100) -> 193.3497313 | V104: =G('CB&P'!E$14,((-J$20)*'CB&P'!E$13/1440)*'CB&P'!U104/Data!V$23^2,0.00001) -> 0.01650885323
T105: 97 | U105: 201.9247894 | V105: =G('CB&P'!E$14,((-J$20)*'CB&P'!E$13/1440)*'CB&P'!U105/Data!V$23^2,0.00001) -> 0.01570543414
T106: 98 | U106: 210.8801512 | V106: =G('CB&P'!E$14,((-J$20)*'CB&P'!E$13/1440)*'CB&P'!U106/Data!V$23^2,0.00001) -> 0.01494458441
T107: 99 | U107: 220.2326833 | V107: =G('CB&P'!E$14,((-J$20)*'CB&P'!E$13/1440)*'CB&P'!U107/Data!V$23^2,0.00001) -> 0.01422381455
T108: 100 | U108: 230 | V108: =G('CB&P'!E$14,((-J$20)*'CB&P'!E$13/1440)*'CB&P'!U108/Data!V$23^2,0.00001) -> 0.01354079064

Sheet B&R Type Curve
A1: Bouwer and Rice Short Term LNAPL Mobility Test Type Curves
A2: =CONCATENATE("B&R Type Curves: Casing Rad. (ft) = ",Data!B6," ; Borehole Rad. (ft) = ",Data!B7) -> B&R Type Curves: Casing Rad. (ft) = 0.0833333333333333 ; Borehole Rad. (ft) = 0.333333333333333
D5: Enter these values
A6: Type Curve ID | B6: Type Curve Name | C6: Notes | D6: Max Time (min) | E6: Transmissivity (ft2/day)
A7: 1 | B7: =CONCATENATE("T=",E7," ft2/day") -> T=10 ft2/day | D7: 150 | E7: 10 | G7: J-Ratio | K7: Type Curve 1 | N7: Type Curve 2 | Q7: Type Curve 3 | T7: Type Curve 4 | W7: Type Curve 5 | Z7: Type Curve 6 | AC7: Type Curve 7
A8: 2 | B8: T=5 ft2/day | D8: 200 | E8: 5 | G8: =Figures!U27 -> -1.276595745 | H8: <-- If uncertain use | L8: T (ft2/day) | O8: T (ft2/day) | R8: T (ft2/day) | U8: T (ft2/day) | X8: T (ft2/day) | AA8: T (ft2/day) | AD8: T (ft2/day)
A9: 3 | B9: T=2 ft2/day | D9: 200 | E9: 2 | H9: =-(1-Data!B9) -> -0.22 | L9: =E7 -> 10 | O9: =E8 -> 5 | R9: =E9 -> 2 | U9: =E10 -> 1 | X9: =E11 -> 0.5 | AA9: =E12 -> 0.2 | AD9: =E13 -> 0.1
A10: 4 | B10: T=1 ft2/day | D10: 200 | E10: 1
A11: 5 | B11: T=0.5 ft2/day | D11: 200 | E11: 0.5 | K11: t (min) | L11: s(t)/s0 | N11: t (min) | O11: s(t)/s0 | Q11: t (min) | R11: s(t)/s0 | T11: t (min) | U11: s(t)/s0 | W11: t (min) | X11: s(t)/s0 | Z11: t (min) | AA11: s(t)/s0 | AC11: t (min) | AD11: s(t)/s0
A12: 6 | B12: T=0.2 ft2/day | D12: 200 | E12: 0.2 | K12: 0 | L12: =EXP(-(2*L$9*(K12/1440)*(-G$8)/(Data!B$13^2*LN('B&R'!$J$12)))) -> 1 | N12: 0 | O12: =EXP(-(2*O$9*(N12/1440)*(-G$8))/(Data!B$13^2*LN('B&R'!$J$12))) -> 1 | Q12: 0 | R12: =EXP(-(2*R$9*(Q12/1440)*(-G$8))/(Data!B$13^2*LN('B&R'!$J$12))) -> 1 | T12: 0 | U12: =EXP(-(2*U$9*(T12/1440)*(-G$8))/(Data!B$13^2*LN('B&R'!J$12))) -> 1 | W12: 0 | X12: =EXP(-(2*X$9*(W12/1440)*(-G$8))/(Data!B$13^2*LN('B&R'!$J$12))) -> 1 | Z12: 0 | AA12: =EXP(-(2*AA$9*(Z12/1440)*(-G$8))/(Data!B$13^2*LN('B&R'!$J$12))) -> 1 | AC12: 0 | AD12: =EXP(-(2*AD$9*(AC12/1440)*(-G$8))/(Data!B$13^2*LN('B&R'!$J$12))) -> 1
A13: 7 | B13: T=0.1 ft2/day | D13: 200 | E13: 0.1 | K13: =(K$42-K$12)/30+K12 -> 5 | L13: =EXP(-(2*L$9*(K13/1440)*(-G$8)/(Data!B$13^2*LN('B&R'!$J$12)))) -> 0.3455613138 | N13: =(N$42-N$12)/30+N12 -> 6.666666667 | O13: =EXP(-(2*O$9*(N13/1440)*(-G$8))/(Data!B$13^2*LN('B&R'!$J$12))) -> 0.4924363205 | Q13: =(Q$42-Q$12)/30+Q12 -> 6.666666667 | R13: =EXP(-(2*R$9*(Q13/1440)*(-G$8))/(Data!B$13^2*LN('B&R'!$J$12))) -> 0.7532515449 | T13: =(T$42-T$12)/30+T12 -> 6.666666667 | U13: =EXP(-(2*U$9*(T13/1440)*(-G$8))/(Data!B$13^2*LN('B&R'!J$12))) -> 0.8679006538 | W13: =(W$42-W$12)/30+W12 -> 6.666666667 | X13: =EXP(-(2*X$9*(W13/1440)*(-G$8))/(Data!B$13^2*LN('B&R'!$J$12))) -> 0.9316118579 | Z13: =(Z$42-Z$12)/30+Z12 -> 6.666666667 | AA13: =EXP(-(2*AA$9*(Z13/1440)*(-G$8))/(Data!B$13^2*LN('B&R'!$J$12))) -> 0.9720620832 | AC13: =(AC$42-AC$12)/30+AC12 -> 6.666666667 | AD13: =EXP(-(2*AD$9*(AC13/1440)*(-G$8))/(Data!B$13^2*LN('B&R'!$J$12))) -> 0.9859320885
K14: 10 | L14: =EXP(-(2*L$9*(K14/1440)*(-G$8)/(Data!B$13^2*LN('B&R'!$J$12)))) -> 0.1194126216 | N14: 13.33333333 | O14: =EXP(-(2*O$9*(N14/1440)*(-G$8))/(Data!B$13^2*LN('B&R'!$J$12))) -> 0.2424935298 | Q14: 13.33333333 | R14: =EXP(-(2*R$9*(Q14/1440)*(-G$8))/(Data!B$13^2*LN('B&R'!$J$12))) -> 0.5673878898 | T14: 13.33333333 | U14: =EXP(-(2*U$9*(T14/1440)*(-G$8))/(Data!B$13^2*LN('B&R'!J$12))) -> 0.7532515449 | W14: 13.33333333 | X14: =EXP(-(2*X$9*(W14/1440)*(-G$8))/(Data!B$13^2*LN('B&R'!$J$12))) -> 0.8679006538 | Z14: 13.33333333 | AA14: =EXP(-(2*AA$9*(Z14/1440)*(-G$8))/(Data!B$13^2*LN('B&R'!$J$12))) -> 0.9449046935 | AC14: 13.33333333 | AD14: =EXP(-(2*AD$9*(AC14/1440)*(-G$8))/(Data!B$13^2*LN('B&R'!$J$12))) -> 0.9720620832
K15: 15 | L15: =EXP(-(2*L$9*(K15/1440)*(-G$8)/(Data!B$13^2*LN('B&R'!$J$12)))) -> 0.04126438239 | N15: 20 | O15: =EXP(-(2*O$9*(N15/1440)*(-G$8))/(Data!B$13^2*LN('B&R'!$J$12))) -> 0.1194126216 | Q15: 20 | R15: =EXP(-(2*R$9*(Q15/1440)*(-G$8))/(Data!B$13^2*LN('B&R'!$J$12))) -> 0.4273858046 | T15: 20 | U15: =EXP(-(2*U$9*(T15/1440)*(-G$8))/(Data!B$13^2*LN('B&R'!J$12))) -> 0.6537475083 | W15: 20 | X15: =EXP(-(2*X$9*(W15/1440)*(-G$8))/(Data!B$13^2*LN('B&R'!$J$12))) -> 0.8085465406 | Z15: 20 | AA15: =EXP(-(2*AA$9*(Z15/1440)*(-G$8))/(Data!B$13^2*LN('B&R'!$J$12))) -> 0.9185060247 | AC15: 20 | AD15: =EXP(-(2*AD$9*(AC15/1440)*(-G$8))/(Data!B$13^2*LN('B&R'!$J$12))) -> 0.9583871998
K16: 20 | L16: =EXP(-(2*L$9*(K16/1440)*(-G$8)/(Data!B$13^2*LN('B&R'!$J$12)))) -> 0.01425937419 | N16: 26.66666667 | O16: =EXP(-(2*O$9*(N16/1440)*(-G$8))/(Data!B$13^2*LN('B&R'!$J$12))) -> 0.05880311199 | Q16: 26.66666667 | R16: =EXP(-(2*R$9*(Q16/1440)*(-G$8))/(Data!B$13^2*LN('B&R'!$J$12))) -> 0.3219290175 | T16: 26.66666667 | U16: =EXP(-(2*U$9*(T16/1440)*(-G$8))/(Data!B$13^2*LN('B&R'!J$12))) -> 0.5673878898 | W16: 26.66666667 | X16: =EXP(-(2*X$9*(W16/1440)*(-G$8))/(Data!B$13^2*LN('B&R'!$J$12))) -> 0.7532515449 | Z16: 26.66666667 | AA16: =EXP(-(2*AA$9*(Z16/1440)*(-G$8))/(Data!B$13^2*LN('B&R'!$J$12))) -> 0.8928448798 | AC16: 26.66666667 | AD16: =EXP(-(2*AD$9*(AC16/1440)*(-G$8))/(Data!B$13^2*LN('B&R'!$J$12))) -> 0.9449046935
K17: 25 | L17: =EXP(-(2*L$9*(K17/1440)*(-G$8)/(Data!B$13^2*LN('B&R'!$J$12)))) -> 0.004927488078 | N17: 33.33333333 | O17: =EXP(-(2*O$9*(N17/1440)*(-G$8))/(Data!B$13^2*LN('B&R'!$J$12))) -> 0.0289567881 | Q17: 33.33333333 | R17: =EXP(-(2*R$9*(Q17/1440)*(-G$8))/(Data!B$13^2*LN('B&R'!$J$12))) -> 0.2424935298 | T17: 33.33333333 | U17: =EXP(-(2*U$9*(T17/1440)*(-G$8))/(Data!B$13^2*LN('B&R'!J$12))) -> 0.4924363205 | W17: 33.33333333 | X17: =EXP(-(2*X$9*(W17/1440)*(-G$8))/(Data!B$13^2*LN('B&R'!$J$12))) -> 0.7017380712 | Z17: 33.33333333 | AA17: =EXP(-(2*AA$9*(Z17/1440)*(-G$8))/(Data!B$13^2*LN('B&R'!$J$12))) -> 0.8679006538 | AC17: 33.33333333 | AD17: =EXP(-(2*AD$9*(AC17/1440)*(-G$8))/(Data!B$13^2*LN('B&R'!$J$12))) -> 0.9316118579
K18: 30 | L18: =EXP(-(2*L$9*(K18/1440)*(-G$8)/(Data!B$13^2*LN('B&R'!$J$12)))) -> 0.001702749254 | N18: 40 | O18: =EXP(-(2*O$9*(N18/1440)*(-G$8))/(Data!B$13^2*LN('B&R'!$J$12))) -> 0.01425937419 | Q18: 40 | R18: =EXP(-(2*R$9*(Q18/1440)*(-G$8))/(Data!B$13^2*LN('B&R'!$J$12))) -> 0.1826586259 | T18: 40 | U18: =EXP(-(2*U$9*(T18/1440)*(-G$8))/(Data!B$13^2*LN('B&R'!J$12))) -> 0.4273858046 | W18: 40 | X18: =EXP(-(2*X$9*(W18/1440)*(-G$8))/(Data!B$13^2*LN('B&R'!$J$12))) -> 0.6537475083 | Z18: 40 | AA18: =EXP(-(2*AA$9*(Z18/1440)*(-G$8))/(Data!B$13^2*LN('B&R'!$J$12))) -> 0.8436533175 | AC18: 40 | AD18: =EXP(-(2*AD$9*(AC18/1440)*(-G$8))/(Data!B$13^2*LN('B&R'!$J$12))) -> 0.9185060247
K19: 35 | L19: =EXP(-(2*L$9*(K19/1440)*(-G$8)/(Data!B$13^2*LN('B&R'!$J$12)))) -> 0.0005884042691 | N19: 46.66666667 | O19: =EXP(-(2*O$9*(N19/1440)*(-G$8))/(Data!B$13^2*LN('B&R'!$J$12))) -> 0.007021833759 | Q19: 46.66666667 | R19: =EXP(-(2*R$9*(Q19/1440)*(-G$8))/(Data!B$13^2*LN('B&R'!$J$12))) -> 0.1375878922 | T19: 46.66666667 | U19: =EXP(-(2*U$9*(T19/1440)*(-G$8))/(Data!B$13^2*LN('B&R'!J$12))) -> 0.3709284192 | W19: 46.66666667 | X19: =EXP(-(2*X$9*(W19/1440)*(-G$8))/(Data!B$13^2*LN('B&R'!$J$12))) -> 0.6090389308 | Z19: 46.66666667 | AA19: =EXP(-(2*AA$9*(Z19/1440)*(-G$8))/(Data!B$13^2*LN('B&R'!$J$12))) -> 0.8200834013 | AC19: 46.66666667 | AD19: =EXP(-(2*AD$9*(AC19/1440)*(-G$8))/(Data!B$13^2*LN('B&R'!$J$12))) -> 0.9055845633
K20: 40 | L20: =EXP(-(2*L$9*(K20/1440)*(-G$8)/(Data!B$13^2*LN('B&R'!$J$12)))) -> 0.0002033297523 | N20: 53.33333333 | O20: =EXP(-(2*O$9*(N20/1440)*(-G$8))/(Data!B$13^2*LN('B&R'!$J$12))) -> 0.00345780598 | Q20: 53.33333333 | R20: =EXP(-(2*R$9*(Q20/1440)*(-G$8))/(Data!B$13^2*LN('B&R'!$J$12))) -> 0.1036382923 | T20: 53.33333333 | U20: =EXP(-(2*U$9*(T20/1440)*(-G$8))/(Data!B$13^2*LN('B&R'!J$12))) -> 0.3219290175 | W20: 53.33333333 | X20: =EXP(-(2*X$9*(W20/1440)*(-G$8))/(Data!B$13^2*LN('B&R'!$J$12))) -> 0.5673878898 | Z20: 53.33333333 | AA20: =EXP(-(2*AA$9*(Z20/1440)*(-G$8))/(Data!B$13^2*LN('B&R'!$J$12))) -> 0.7971719794 | AC20: 53.33333333 | AD20: =EXP(-(2*AD$9*(AC20/1440)*(-G$8))/(Data!B$13^2*LN('B&R'!$J$12))) -> 0.8928448798
K21: 45 | L21: =EXP(-(2*L$9*(K21/1440)*(-G$8)/(Data!B$13^2*LN('B&R'!$J$12)))) -> 7.026289631e-05 | N21: 60 | O21: =EXP(-(2*O$9*(N21/1440)*(-G$8))/(Data!B$13^2*LN('B&R'!$J$12))) -> 0.001702749254 | Q21: 60 | R21: =EXP(-(2*R$9*(Q21/1440)*(-G$8))/(Data!B$13^2*LN('B&R'!$J$12))) -> 0.0780657038 | T21: 60 | U21: =EXP(-(2*U$9*(T21/1440)*(-G$8))/(Data!B$13^2*LN('B&R'!J$12))) -> 0.2794024048 | W21: 60 | X21: =EXP(-(2*X$9*(W21/1440)*(-G$8))/(Data!B$13^2*LN('B&R'!$J$12))) -> 0.5285852862 | Z21: 60 | AA21: =EXP(-(2*AA$9*(Z21/1440)*(-G$8))/(Data!B$13^2*LN('B&R'!$J$12))) -> 0.7749006549 | AC21: 60 | AD21: =EXP(-(2*AD$9*(AC21/1440)*(-G$8))/(Data!B$13^2*LN('B&R'!$J$12))) -> 0.8802844171
K22: 50 | L22: =EXP(-(2*L$9*(K22/1440)*(-G$8)/(Data!B$13^2*LN('B&R'!$J$12)))) -> 2.428013876e-05 | N22: 66.66666667 | O22: =EXP(-(2*O$9*(N22/1440)*(-G$8))/(Data!B$13^2*LN('B&R'!$J$12))) -> 0.0008384955773 | Q22: 66.66666667 | R22: =EXP(-(2*R$9*(Q22/1440)*(-G$8))/(Data!B$13^2*LN('B&R'!$J$12))) -> 0.05880311199 | T22: 66.66666667 | U22: =EXP(-(2*U$9*(T22/1440)*(-G$8))/(Data!B$13^2*LN('B&R'!J$12))) -> 0.2424935298 | W22: 66.66666667 | X22: =EXP(-(2*X$9*(W22/1440)*(-G$8))/(Data!B$13^2*LN('B&R'!$J$12))) -> 0.4924363205 | Z22: 66.66666667 | AA22: =EXP(-(2*AA$9*(Z22/1440)*(-G$8))/(Data!B$13^2*LN('B&R'!$J$12))) -> 0.7532515449 | AC22: 66.66666667 | AD22: =EXP(-(2*AD$9*(AC22/1440)*(-G$8))/(Data!B$13^2*LN('B&R'!$J$12))) -> 0.8679006538
K23: 55 | L23: =EXP(-(2*L$9*(K23/1440)*(-G$8)/(Data!B$13^2*LN('B&R'!$J$12)))) -> 8.390276648e-06 | N23: 73.33333333 | O23: =EXP(-(2*O$9*(N23/1440)*(-G$8))/(Data!B$13^2*LN('B&R'!$J$12))) -> 0.0004129056769 | Q23: 73.33333333 | R23: =EXP(-(2*R$9*(Q23/1440)*(-G$8))/(Data!B$13^2*LN('B&R'!$J$12))) -> 0.04429353495 | T23: 73.33333333 | U23: =EXP(-(2*U$9*(T23/1440)*(-G$8))/(Data!B$13^2*LN('B&R'!J$12))) -> 0.210460293 | W23: 73.33333333 | X23: =EXP(-(2*X$9*(W23/1440)*(-G$8))/(Data!B$13^2*LN('B&R'!$J$12))) -> 0.4587595155 | Z23: 73.33333333 | AA23: =EXP(-(2*AA$9*(Z23/1440)*(-G$8))/(Data!B$13^2*LN('B&R'!$J$12))) -> 0.7322072658 | AC23: 73.33333333 | AD23: =EXP(-(2*AD$9*(AC23/1440)*(-G$8))/(Data!B$13^2*LN('B&R'!$J$12))) -> 0.8556911042
K24: 60 | L24: =EXP(-(2*L$9*(K24/1440)*(-G$8)/(Data!B$13^2*LN('B&R'!$J$12)))) -> 2.899355021e-06 | N24: 80 | O24: =EXP(-(2*O$9*(N24/1440)*(-G$8))/(Data!B$13^2*LN('B&R'!$J$12))) -> 0.0002033297523 | Q24: 80 | R24: =EXP(-(2*R$9*(Q24/1440)*(-G$8))/(Data!B$13^2*LN('B&R'!$J$12))) -> 0.03336417363 | T24: 80 | U24: =EXP(-(2*U$9*(T24/1440)*(-G$8))/(Data!B$13^2*LN('B&R'!J$12))) -> 0.1826586259 | W24: 80 | X24: =EXP(-(2*X$9*(W24/1440)*(-G$8))/(Data!B$13^2*LN('B&R'!$J$12))) -> 0.4273858046 | Z24: 80 | AA24: =EXP(-(2*AA$9*(Z24/1440)*(-G$8))/(Data!B$13^2*LN('B&R'!$J$12))) -> 0.7117509201 | AC24: 80 | AD24: =EXP(-(2*AD$9*(AC24/1440)*(-G$8))/(Data!B$13^2*LN('B&R'!$J$12))) -> 0.8436533175
K25: 65 | L25: =EXP(-(2*L$9*(K25/1440)*(-G$8)/(Data!B$13^2*LN('B&R'!$J$12)))) -> 1.00190493e-06 | N25: 86.66666667 | O25: =EXP(-(2*O$9*(N25/1440)*(-G$8))/(Data!B$13^2*LN('B&R'!$J$12))) -> 0.0001001269551 | Q25: 86.66666667 | R25: =EXP(-(2*R$9*(Q25/1440)*(-G$8))/(Data!B$13^2*LN('B&R'!$J$12))) -> 0.02513161533 | T25: 86.66666667 | U25: =EXP(-(2*U$9*(T25/1440)*(-G$8))/(Data!B$13^2*LN('B&R'!J$12))) -> 0.1585295409 | W25: 86.66666667 | X25: =EXP(-(2*X$9*(W25/1440)*(-G$8))/(Data!B$13^2*LN('B&R'!$J$12))) -> 0.3981576834 | Z25: 86.66666667 | AA25: =EXP(-(2*AA$9*(Z25/1440)*(-G$8))/(Data!B$13^2*LN('B&R'!$J$12))) -> 0.6918660821 | AC25: 86.66666667 | AD25: =EXP(-(2*AD$9*(AC25/1440)*(-G$8))/(Data!B$13^2*LN('B&R'!$J$12))) -> 0.8317848773
K26: 70 | L26: =EXP(-(2*L$9*(K26/1440)*(-G$8)/(Data!B$13^2*LN('B&R'!$J$12)))) -> 3.462195839e-07 | N26: 93.33333333 | O26: =EXP(-(2*O$9*(N26/1440)*(-G$8))/(Data!B$13^2*LN('B&R'!$J$12))) -> 4.930614934e-05 | Q26: 93.33333333 | R26: =EXP(-(2*R$9*(Q26/1440)*(-G$8))/(Data!B$13^2*LN('B&R'!$J$12))) -> 0.01893042807 | T26: 93.33333333 | U26: =EXP(-(2*U$9*(T26/1440)*(-G$8))/(Data!B$13^2*LN('B&R'!J$12))) -> 0.1375878922 | W26: 93.33333333 | X26: =EXP(-(2*X$9*(W26/1440)*(-G$8))/(Data!B$13^2*LN('B&R'!$J$12))) -> 0.3709284192 | Z26: 93.33333333 | AA26: =EXP(-(2*AA$9*(Z26/1440)*(-G$8))/(Data!B$13^2*LN('B&R'!$J$12))) -> 0.672536785 | AC26: 93.33333333 | AD26: =EXP(-(2*AD$9*(AC26/1440)*(-G$8))/(Data!B$13^2*LN('B&R'!$J$12))) -> 0.8200834013
K27: 75 | L27: =EXP(-(2*L$9*(K27/1440)*(-G$8)/(Data!B$13^2*LN('B&R'!$J$12)))) -> 1.196400943e-07 | N27: 100 | O27: =EXP(-(2*O$9*(N27/1440)*(-G$8))/(Data!B$13^2*LN('B&R'!$J$12))) -> 2.428013876e-05 | Q27: 100 | R27: =EXP(-(2*R$9*(Q27/1440)*(-G$8))/(Data!B$13^2*LN('B&R'!$J$12))) -> 0.01425937419 | T27: 100 | U27: =EXP(-(2*U$9*(T27/1440)*(-G$8))/(Data!B$13^2*LN('B&R'!J$12))) -> 0.1194126216 | W27: 100 | X27: =EXP(-(2*X$9*(W27/1440)*(-G$8))/(Data!B$13^2*LN('B&R'!$J$12))) -> 0.3455613138 | Z27: 100 | AA27: =EXP(-(2*AA$9*(Z27/1440)*(-G$8))/(Data!B$13^2*LN('B&R'!$J$12))) -> 0.6537475083 | AC27: 100 | AD27: =EXP(-(2*AD$9*(AC27/1440)*(-G$8))/(Data!B$13^2*LN('B&R'!$J$12))) -> 0.8085465406
K28: 80 | L28: =EXP(-(2*L$9*(K28/1440)*(-G$8)/(Data!B$13^2*LN('B&R'!$J$12)))) -> 4.134298815e-08 | N28: 106.6666667 | O28: =EXP(-(2*O$9*(N28/1440)*(-G$8))/(Data!B$13^2*LN('B&R'!$J$12))) -> 1.195642219e-05 | Q28: 106.6666667 | R28: =EXP(-(2*R$9*(Q28/1440)*(-G$8))/(Data!B$13^2*LN('B&R'!$J$12))) -> 0.01074089564 | T28: 106.6666667 | U28: =EXP(-(2*U$9*(T28/1440)*(-G$8))/(Data!B$13^2*LN('B&R'!J$12))) -> 0.1036382923 | W28: 106.6666667 | X28: =EXP(-(2*X$9*(W28/1440)*(-G$8))/(Data!B$13^2*LN('B&R'!$J$12))) -> 0.3219290175 | Z28: 106.6666667 | AA28: =EXP(-(2*AA$9*(Z28/1440)*(-G$8))/(Data!B$13^2*LN('B&R'!$J$12))) -> 0.6354831647 | AC28: 106.6666667 | AD28: =EXP(-(2*AD$9*(AC28/1440)*(-G$8))/(Data!B$13^2*LN('B&R'!$J$12))) -> 0.7971719794
K29: 85 | L29: =EXP(-(2*L$9*(K29/1440)*(-G$8)/(Data!B$13^2*LN('B&R'!$J$12)))) -> 1.42865373e-08 | N29: 113.3333333 | O29: =EXP(-(2*O$9*(N29/1440)*(-G$8))/(Data!B$13^2*LN('B&R'!$J$12))) -> 5.887776551e-06 | Q29: 113.3333333 | R29: =EXP(-(2*R$9*(Q29/1440)*(-G$8))/(Data!B$13^2*LN('B&R'!$J$12))) -> 0.008090596231 | T29: 113.3333333 | U29: =EXP(-(2*U$9*(T29/1440)*(-G$8))/(Data!B$13^2*LN('B&R'!J$12))) -> 0.08994774167 | W29: 113.3333333 | X29: =EXP(-(2*X$9*(W29/1440)*(-G$8))/(Data!B$13^2*LN('B&R'!$J$12))) -> 0.2999128901 | Z29: 113.3333333 | AA29: =EXP(-(2*AA$9*(Z29/1440)*(-G$8))/(Data!B$13^2*LN('B&R'!$J$12))) -> 0.6177290889 | AC29: 113.3333333 | AD29: =EXP(-(2*AD$9*(AC29/1440)*(-G$8))/(Data!B$13^2*LN('B&R'!$J$12))) -> 0.7859574345
K30: 90 | L30: =EXP(-(2*L$9*(K30/1440)*(-G$8)/(Data!B$13^2*LN('B&R'!$J$12)))) -> 4.936874599e-09 | N30: 120 | O30: =EXP(-(2*O$9*(N30/1440)*(-G$8))/(Data!B$13^2*LN('B&R'!$J$12))) -> 2.899355021e-06 | Q30: 120 | R30: =EXP(-(2*R$9*(Q30/1440)*(-G$8))/(Data!B$13^2*LN('B&R'!$J$12))) -> 0.00609425411 | T30: 120 | U30: =EXP(-(2*U$9*(T30/1440)*(-G$8))/(Data!B$13^2*LN('B&R'!J$12))) -> 0.0780657038 | W30: 120 | X30: =EXP(-(2*X$9*(W30/1440)*(-G$8))/(Data!B$13^2*LN('B&R'!$J$12))) -> 0.2794024048 | Z30: 120 | AA30: =EXP(-(2*AA$9*(Z30/1440)*(-G$8))/(Data!B$13^2*LN('B&R'!$J$12))) -> 0.600471025 | AC30: 120 | AD30: =EXP(-(2*AD$9*(AC30/1440)*(-G$8))/(Data!B$13^2*LN('B&R'!$J$12))) -> 0.7749006549
K31: 95 | L31: =EXP(-(2*L$9*(K31/1440)*(-G$8)/(Data!B$13^2*LN('B&R'!$J$12)))) -> 1.705992872e-09 | N31: 126.6666667 | O31: =EXP(-(2*O$9*(N31/1440)*(-G$8))/(Data!B$13^2*LN('B&R'!$J$12))) -> 1.427747719e-06 | Q31: 126.6666667 | R31: =EXP(-(2*R$9*(Q31/1440)*(-G$8))/(Data!B$13^2*LN('B&R'!$J$12))) -> 0.004590506323 | T31: 126.6666667 | U31: =EXP(-(2*U$9*(T31/1440)*(-G$8))/(Data!B$13^2*LN('B&R'!J$12))) -> 0.06775327537 | W31: 126.6666667 | X31: =EXP(-(2*X$9*(W31/1440)*(-G$8))/(Data!B$13^2*LN('B&R'!$J$12))) -> 0.2602945934 | Z31: 126.6666667 | AA31: =EXP(-(2*AA$9*(Z31/1440)*(-G$8))/(Data!B$13^2*LN('B&R'!$J$12))) -> 0.5836951154 | AC31: 126.6666667 | AD31: =EXP(-(2*AD$9*(AC31/1440)*(-G$8))/(Data!B$13^2*LN('B&R'!$J$12))) -> 0.7639994211
K32: 100 | L32: =EXP(-(2*L$9*(K32/1440)*(-G$8)/(Data!B$13^2*LN('B&R'!$J$12)))) -> 5.895251381e-10 | N32: 133.3333333 | O32: =EXP(-(2*O$9*(N32/1440)*(-G$8))/(Data!B$13^2*LN('B&R'!$J$12))) -> 7.030748332e-07 | Q32: 133.3333333 | R32: =EXP(-(2*R$9*(Q32/1440)*(-G$8))/(Data!B$13^2*LN('B&R'!$J$12))) -> 0.00345780598 | T32: 133.3333333 | U32: =EXP(-(2*U$9*(T32/1440)*(-G$8))/(Data!B$13^2*LN('B&R'!J$12))) -> 0.05880311199 | W32: 133.3333333 | X32: =EXP(-(2*X$9*(W32/1440)*(-G$8))/(Data!B$13^2*LN('B&R'!$J$12))) -> 0.2424935298 | Z32: 133.3333333 | AA32: =EXP(-(2*AA$9*(Z32/1440)*(-G$8))/(Data!B$13^2*LN('B&R'!$J$12))) -> 0.5673878898 | AC32: 133.3333333 | AD32: =EXP(-(2*AD$9*(AC32/1440)*(-G$8))/(Data!B$13^2*LN('B&R'!$J$12))) -> 0.7532515449
K33: 105 | L33: =EXP(-(2*L$9*(K33/1440)*(-G$8)/(Data!B$13^2*LN('B&R'!$J$12)))) -> 2.037170812e-10 | N33: 140 | O33: =EXP(-(2*O$9*(N33/1440)*(-G$8))/(Data!B$13^2*LN('B&R'!$J$12))) -> 3.462195839e-07 | Q33: 140 | R33: =EXP(-(2*R$9*(Q33/1440)*(-G$8))/(Data!B$13^2*LN('B&R'!$J$12))) -> 0.002604597696 | T33: 140 | U33: =EXP(-(2*U$9*(T33/1440)*(-G$8))/(Data!B$13^2*LN('B&R'!J$12))) -> 0.05103525934 | W33: 140 | X33: =EXP(-(2*X$9*(W33/1440)*(-G$8))/(Data!B$13^2*LN('B&R'!$J$12))) -> 0.2259098478 | Z33: 140 | AA33: =EXP(-(2*AA$9*(Z33/1440)*(-G$8))/(Data!B$13^2*LN('B&R'!$J$12))) -> 0.5515362541 | AC33: 140 | AD33: =EXP(-(2*AD$9*(AC33/1440)*(-G$8))/(Data!B$13^2*LN('B&R'!$J$12))) -> 0.7426548688
K34: 110 | L34: =EXP(-(2*L$9*(K34/1440)*(-G$8)/(Data!B$13^2*LN('B&R'!$J$12)))) -> 7.039674222e-11 | N34: 146.6666667 | O34: =EXP(-(2*O$9*(N34/1440)*(-G$8))/(Data!B$13^2*LN('B&R'!$J$12))) -> 1.70491098e-07 | Q34: 146.6666667 | R34: =EXP(-(2*R$9*(Q34/1440)*(-G$8))/(Data!B$13^2*LN('B&R'!$J$12))) -> 0.001961917238 | T34: 146.6666667 | U34: =EXP(-(2*U$9*(T34/1440)*(-G$8))/(Data!B$13^2*LN('B&R'!J$12))) -> 0.04429353495 | W34: 146.6666667 | X34: =EXP(-(2*X$9*(W34/1440)*(-G$8))/(Data!B$13^2*LN('B&R'!$J$12))) -> 0.210460293 | Z34: 146.6666667 | AA34: =EXP(-(2*AA$9*(Z34/1440)*(-G$8))/(Data!B$13^2*LN('B&R'!$J$12))) -> 0.5361274801 | AC34: 146.6666667 | AD34: =EXP(-(2*AD$9*(AC34/1440)*(-G$8))/(Data!B$13^2*LN('B&R'!$J$12))) -> 0.7322072658
K35: 115 | L35: =EXP(-(2*L$9*(K35/1440)*(-G$8)/(Data!B$13^2*LN('B&R'!$J$12)))) -> 2.432639073e-11 | N35: 153.3333333 | O35: =EXP(-(2*O$9*(N35/1440)*(-G$8))/(Data!B$13^2*LN('B&R'!$J$12))) -> 8.395600899e-08 | Q35: 153.3333333 | R35: =EXP(-(2*R$9*(Q35/1440)*(-G$8))/(Data!B$13^2*LN('B&R'!$J$12))) -> 0.001477817191 | T35: 153.3333333 | U35: =EXP(-(2*U$9*(T35/1440)*(-G$8))/(Data!B$13^2*LN('B&R'!J$12))) -> 0.03844238794 | W35: 153.3333333 | X35: =EXP(-(2*X$9*(W35/1440)*(-G$8))/(Data!B$13^2*LN('B&R'!$J$12))) -> 0.1960673046 | Z35: 153.3333333 | AA35: =EXP(-(2*AA$9*(Z35/1440)*(-G$8))/(Data!B$13^2*LN('B&R'!$J$12))) -> 0.5211491952 | AC35: 153.3333333 | AD35: =EXP(-(2*AD$9*(AC35/1440)*(-G$8))/(Data!B$13^2*LN('B&R'!$J$12))) -> 0.7219066388
K36: 120 | L36: =EXP(-(2*L$9*(K36/1440)*(-G$8)/(Data!B$13^2*LN('B&R'!$J$12)))) -> 8.406259539e-12 | N36: 160 | O36: =EXP(-(2*O$9*(N36/1440)*(-G$8))/(Data!B$13^2*LN('B&R'!$J$12))) -> 4.134298815e-08 | Q36: 160 | R36: =EXP(-(2*R$9*(Q36/1440)*(-G$8))/(Data!B$13^2*LN('B&R'!$J$12))) -> 0.001113168082 | T36: 160 | U36: =EXP(-(2*U$9*(T36/1440)*(-G$8))/(Data!B$13^2*LN('B&R'!J$12))) -> 0.03336417363 | W36: 160 | X36: =EXP(-(2*X$9*(W36/1440)*(-G$8))/(Data!B$13^2*LN('B&R'!$J$12))) -> 0.1826586259 | Z36: 160 | AA36: =EXP(-(2*AA$9*(Z36/1440)*(-G$8))/(Data!B$13^2*LN('B&R'!$J$12))) -> 0.5065893723 | AC36: 160 | AD36: =EXP(-(2*AD$9*(AC36/1440)*(-G$8))/(Data!B$13^2*LN('B&R'!$J$12))) -> 0.7117509201
K37: 125 | L37: =EXP(-(2*L$9*(K37/1440)*(-G$8)/(Data!B$13^2*LN('B&R'!$J$12)))) -> 2.90487809e-12 | N37: 166.6666667 | O37: =EXP(-(2*O$9*(N37/1440)*(-G$8))/(Data!B$13^2*LN('B&R'!$J$12))) -> 2.035878897e-08 | Q37: 166.6666667 | R37: =EXP(-(2*R$9*(Q37/1440)*(-G$8))/(Data!B$13^2*LN('B&R'!$J$12))) -> 0.0008384955773 | T37: 166.6666667 | U37: =EXP(-(2*U$9*(T37/1440)*(-G$8))/(Data!B$13^2*LN('B&R'!J$12))) -> 0.0289567881 | W37: 166.6666667 | X37: =EXP(-(2*X$9*(W37/1440)*(-G$8))/(Data!B$13^2*LN('B&R'!$J$12))) -> 0.1701669419 | Z37: 166.6666667 | AA37: =EXP(-(2*AA$9*(Z37/1440)*(-G$8))/(Data!B$13^2*LN('B&R'!$J$12))) -> 0.4924363205 | AC37: 166.6666667 | AD37: =EXP(-(2*AD$9*(AC37/1440)*(-G$8))/(Data!B$13^2*LN('B&R'!$J$12))) -> 0.7017380712
K38: 130 | L38: =EXP(-(2*L$9*(K38/1440)*(-G$8)/(Data!B$13^2*LN('B&R'!$J$12)))) -> 1.003813489e-12 | N38: 173.3333333 | O38: =EXP(-(2*O$9*(N38/1440)*(-G$8))/(Data!B$13^2*LN('B&R'!$J$12))) -> 1.002540713e-08 | Q38: 173.3333333 | R38: =EXP(-(2*R$9*(Q38/1440)*(-G$8))/(Data!B$13^2*LN('B&R'!$J$12))) -> 0.000631598089 | T38: 173.3333333 | U38: =EXP(-(2*U$9*(T38/1440)*(-G$8))/(Data!B$13^2*LN('B&R'!J$12))) -> 0.02513161533 | W38: 173.3333333 | X38: =EXP(-(2*X$9*(W38/1440)*(-G$8))/(Data!B$13^2*LN('B&R'!$J$12))) -> 0.1585295409 | Z38: 173.3333333 | AA38: =EXP(-(2*AA$9*(Z38/1440)*(-G$8))/(Data!B$13^2*LN('B&R'!$J$12))) -> 0.4786786756 | AC38: 173.3333333 | AD38: =EXP(-(2*AD$9*(AC38/1440)*(-G$8))/(Data!B$13^2*LN('B&R'!$J$12))) -> 0.6918660821
K39: 135 | L39: =EXP(-(2*L$9*(K39/1440)*(-G$8)/(Data!B$13^2*LN('B&R'!$J$12)))) -> 3.46879108e-13 | N39: 180 | O39: =EXP(-(2*O$9*(N39/1440)*(-G$8))/(Data!B$13^2*LN('B&R'!$J$12))) -> 4.936874599e-09 | Q39: 180 | R39: =EXP(-(2*R$9*(Q39/1440)*(-G$8))/(Data!B$13^2*LN('B&R'!$J$12))) -> 0.0004757522362 | T39: 180 | U39: =EXP(-(2*U$9*(T39/1440)*(-G$8))/(Data!B$13^2*LN('B&R'!J$12))) -> 0.02181174537 | W39: 180 | X39: =EXP(-(2*X$9*(W39/1440)*(-G$8))/(Data!B$13^2*LN('B&R'!$J$12))) -> 0.1476880001 | Z39: 180 | AA39: =EXP(-(2*AA$9*(Z39/1440)*(-G$8))/(Data!B$13^2*LN('B&R'!$J$12))) -> 0.4653053905 | AC39: 180 | AD39: =EXP(-(2*AD$9*(AC39/1440)*(-G$8))/(Data!B$13^2*LN('B&R'!$J$12))) -> 0.6821329713
K40: 140 | L40: =EXP(-(2*L$9*(K40/1440)*(-G$8)/(Data!B$13^2*LN('B&R'!$J$12)))) -> 1.198680003e-13 | N40: 186.6666667 | O40: =EXP(-(2*O$9*(N40/1440)*(-G$8))/(Data!B$13^2*LN('B&R'!$J$12))) -> 2.431096362e-09 | Q40: 186.6666667 | R40: =EXP(-(2*R$9*(Q40/1440)*(-G$8))/(Data!B$13^2*LN('B&R'!$J$12))) -> 0.0003583611069 | T40: 186.6666667 | U40: =EXP(-(2*U$9*(T40/1440)*(-G$8))/(Data!B$13^2*LN('B&R'!J$12))) -> 0.01893042807 | W40: 186.6666667 | X40: =EXP(-(2*X$9*(W40/1440)*(-G$8))/(Data!B$13^2*LN('B&R'!$J$12))) -> 0.1375878922 | Z40: 186.6666667 | AA40: =EXP(-(2*AA$9*(Z40/1440)*(-G$8))/(Data!B$13^2*LN('B&R'!$J$12))) -> 0.4523057272 | AC40: 186.6666667 | AD40: =EXP(-(2*AD$9*(AC40/1440)*(-G$8))/(Data!B$13^2*LN('B&R'!$J$12))) -> 0.672536785
K41: 145 | L41: =EXP(-(2*L$9*(K41/1440)*(-G$8)/(Data!B$13^2*LN('B&R'!$J$12)))) -> 4.142174366e-14 | N41: 193.3333333 | O41: =EXP(-(2*O$9*(N41/1440)*(-G$8))/(Data!B$13^2*LN('B&R'!$J$12))) -> 1.197160148e-09 | Q41: 193.3333333 | R41: =EXP(-(2*R$9*(Q41/1440)*(-G$8))/(Data!B$13^2*LN('B&R'!$J$12))) -> 0.0002699360574 | T41: 193.3333333 | U41: =EXP(-(2*U$9*(T41/1440)*(-G$8))/(Data!B$13^2*LN('B&R'!J$12))) -> 0.0164297309 | W41: 193.3333333 | X41: =EXP(-(2*X$9*(W41/1440)*(-G$8))/(Data!B$13^2*LN('B&R'!$J$12))) -> 0.1281785118 | Z41: 193.3333333 | AA41: =EXP(-(2*AA$9*(Z41/1440)*(-G$8))/(Data!B$13^2*LN('B&R'!$J$12))) -> 0.4396692474 | AC41: 193.3333333 | AD41: =EXP(-(2*AD$9*(AC41/1440)*(-G$8))/(Data!B$13^2*LN('B&R'!$J$12))) -> 0.6630755971
K42: =$D$7 -> 150 | L42: =EXP(-(2*L$9*(K42/1440)*(-G$8)/(Data!B$13^2*LN('B&R'!$J$12)))) -> 1.431375216e-14 | N42: =$D$8 -> 200 | O42: =EXP(-(2*O$9*(N42/1440)*(-G$8))/(Data!B$13^2*LN('B&R'!$J$12))) -> 5.895251381e-10 | Q42: =$D$9 -> 200 | R42: =EXP(-(2*R$9*(Q42/1440)*(-G$8))/(Data!B$13^2*LN('B&R'!$J$12))) -> 0.0002033297523 | T42: =$D$10 -> 200 | U42: =EXP(-(2*U$9*(T42/1440)*(-G$8))/(Data!B$13^2*LN('B&R'!J$12))) -> 0.01425937419 | W42: =$D$11 -> 200 | X42: =EXP(-(2*X$9*(W42/1440)*(-G$8))/(Data!B$13^2*LN('B&R'!$J$12))) -> 0.1194126216 | Z42: =$D$12 -> 200 | AA42: =EXP(-(2*AA$9*(Z42/1440)*(-G$8))/(Data!B$13^2*LN('B&R'!$J$12))) -> 0.4273858046 | AC42: =$D$13 -> 200 | AD42: =EXP(-(2*AD$9*(AC42/1440)*(-G$8))/(Data!B$13^2*LN('B&R'!$J$12))) -> 0.6537475083
A49: Field Data
A51: Record Data in Fields Below | G51: Calculate and Plot Fields Below
A52: Well ID | C52: Well Dia. (ft) | E52: Total Depth (ft)
A53: Notes | B53: Date | C53: Time | D53: Elapsed Time (min) | E53: Depth To Product (TOC) | F53: Depth to Water (TOC) | G53: Product Thickness (ft) | H53: Drawdown (s) DTP-DTP(initial) (ft) | I53: Normalized Drawdown (s/sinitial)
A54: Initial Measurement
A55: Stopped Bailing/Start Gauging | D55: 0
A56: Well Starts recovering

Sheet Confined (hidden)
A1: Confined LNAPL Model: | E1: Well Designation: | G1: =IF(Data!B1 > 0,Data!B1,"") -> YYY
E2: Date: | G2: =IF(Data!B2 > 0,Data!B2,"") -> date
A5: Depth to base of confining bed (ft bgs) [from boring log]: | B5: 24.27
A6: Constant LNAPL discharge to well (ft3/d): | B6: 3.53
L9: =Data!N24 -> 2.08 | M9: =B6 -> 3.53
L10: =B14 -> 4.055897436 | M10: =M9 -> 3.53
A11: Depth to top of screen (ft bgs): | B11: =Data!B10 -> 57 | L11: 0 | M11: 0
A12: Corrected water table elevation (ft bgs): | B12: =Data!I21 -> 62.1682
A13: Limiting effective LNAPL thickness in well, bnW (ft): | B13: =IF(B5>B11,(B5-B12)/Data!B9,(B11-B12)/Data!B9) -> -6.625897436
A14: Limiting effective LNAPL drawdown, snW (ft): | B14: =(1-Data!B9)*(Confined!B15-Confined!B13) -> 4.055897436
A15: Initial LNAPL thickness, bnR (ft): | B15: =Data!O21 -> 11.81
A16: Radius of influence ratio (from Bouwer and Rice), R/rw: | B16: ='B&R'!J12 -> 27.50099578
A19: LNAPL Transmissivity, Tn (ft2/d): | B19: =B6*LN(B16)/(2*PI()*(1-Data!B9)*(B15-B13)) -> 0.459081188

Sheet Perched (hidden)
A1: Perched LNAPL Model: | E1: Well Designation: | G1: =IF(Data!B1 > 0,Data!B1,"") -> YYY
E2: Date: | G2: =IF(Data!B2 > 0,Data!B2,"") -> date
A5: Depth to top of perching layer, DZ12 (ft bgs): | B5: 22.63
A6: Constant LNAPL discharge to well (ft3/d): | B6: 3.53
L9: =Data!N24 -> 2.08 | M9: =B6 -> 3.53
L10: =B13 -> -36.94 | M10: =M9 -> 3.53
A11: Depth to top of screen (ft bgs): | B11: =Data!B10 -> 57 | L11: 0 | M11: 0
A12: Corrected water table elevation (ft bgs): | B12: =Data!I21 -> 62.1682
A13: Limiting effective LNAPL drawdown, snW (ft): | B13: =B5-B14 -> -36.94
A14: Initial depth to product (DTP0) (ft bgs): | B14: =Data!E21 -> 59.57
A15: Radius of influence ratio (from Bouwer and Rice), R/rw: | B15: ='B&R'!J12 -> 27.50099578
A18: LNAPL Transmissivity, Tn (ft2/d): | B18: =B6*LN(B15)/(2*PI()*B13) -> -0.05040569066

Sheet Flowchart
